Workbook

Sheet ARUMCPayrollSummarybyEmpl (hidden)
A1: Arkansas Conference of the United Methodist Church
A2: Overall Conference Parent Company : Arkansas Conference of the United Methodist Church
A3: ARUMC Payroll Summary by Employee
A4: January 1, 2020 - April 30, 2020
A7: Payroll Item | B7: Employee: Last Name | D7: Week 03 2020 | H7: Week 05 2020 | L7: Week 07 2020 | P7: Week 09 2020 | T7: Week 11 2020 | X7: Week 14 2020 | AB7: Week 16 2020 | AF7: Week 18 2020 | AJ7: Total
C8: 2020-01-15 | D8: Taxable Wage Base | E8: Taxed Wage Base | F8: Total | G8: Quantity | H8: Taxable Wage Base | I8: Taxed Wage Base | J8: Total | K8: Quantity | L8: Taxable Wage Base | M8: Taxed Wage Base | N8: Total | O8: Quantity | P8: Taxable Wage Base | Q8: Taxed Wage Base | R8: Total | S8: Quantity | T8: Taxable Wage Base | U8: Taxed Wage Base | V8: Total | W8: Quantity | X8: Taxable Wage Base | Y8: Taxed Wage Base | Z8: Total | AA8: Quantity | AB8: Taxable Wage Base | AC8: Taxed Wage Base | AD8: Total | AE8: Quantity | AF8: Taxable Wage Base | AG8: Taxed Wage Base | AH8: Total | AI8: Quantity | AJ8: Taxable Wage Base | AK8: Taxed Wage Base | AL8: Total | AM8: Quantity
A9: Danielle D Adkisson | C9: FT | D9: 22722.53 | E9: 15097.52 | F9: 1971.66 | G9: 86.6667 | H9: 22722.53 | I9: 15097.52 | J9: 1971.64 | K9: 86.6667 | L9: 22722.53 | M9: 15097.52 | N9: 1971.66 | O9: 86.6667 | P9: 22722.53 | Q9: 15097.52 | R9: 1971.65 | S9: 86.6667 | T9: 22722.53 | U9: 15097.52 | V9: 1987.98 | W9: 86.6667 | X9: 22722.53 | Y9: 15097.52 | Z9: 1987.98 | AA9: 86.6667 | AB9: 22722.53 | AC9: 15097.52 | AD9: 1987.99 | AE9: 86.6667 | AF9: 22722.53 | AG9: 15097.52 | AH9: 1987.98 | AI9: 86.6667 | AJ9: 181780.24 | AK9: 120780.16 | AL9: 15838.54 | AM9: 693.3336
A10: Earning
A11: Salary - Assistant to Bishop | B11: Adkisson | F11: 2541.67 | G11: 86.6667 | J11: 2541.67 | K11: 86.6667 | N11: 2541.67 | O11: 86.6667 | R11: 2541.67 | S11: 86.6667 | V11: 2541.67 | W11: 86.6667 | Z11: 2541.67 | AA11: 86.6667 | AD11: 2541.67 | AE11: 86.6667 | AH11: 2541.67 | AI11: 86.6667 | AJ11: =SUM(D11,H11,L11,P11,T11,X11,AB11,AF11) -> 0 | AK11: =SUM(E11,I11,M11,Q11,U11,Y11,AC11,AG11) -> 0 | AL11: =SUM(F11,J11,N11,R11,V11,Z11,AD11,AH11) -> 20333.36 | AM11: =SUM(G11,K11,O11,S11,W11,AA11,AE11,AI11) -> 693.3336
A12: Total - Earning | F12: =SUM(F11) -> 2541.67 | J12: =SUM(J11) -> 2541.67 | N12: =SUM(N11) -> 2541.67 | R12: =SUM(R11) -> 2541.67 | V12: =SUM(V11) -> 2541.67 | Z12: =SUM(Z11) -> 2541.67 | AD12: =SUM(AD11) -> 2541.67 | AH12: =SUM(AH11) -> 2541.67 | AL12: =SUM(AL11) -> 20333.36
A13: Withholding
A14: Additional Medicare | B14: Adkisson | D14: 2541.67 | E14: 0 | F14: 0 | H14: 2541.67 | I14: 0 | J14: 0 | L14: 2541.67 | M14: 0 | N14: 0 | P14: 2541.67 | Q14: 0 | R14: 0 | T14: 2541.67 | U14: 0 | V14: 0 | X14: 2541.67 | Y14: 0 | Z14: 0 | AB14: 2541.67 | AC14: 0 | AD14: 0 | AF14: 2541.67 | AG14: 0 | AH14: 0 | AJ14: =SUM(D14,H14,L14,P14,T14,X14,AB14,AF14) -> 20333.36 | AK14: 0 | AL14: 0 | AM14: 0
A15: Arkansas Withholding | B15: Adkisson | D15: 2465.42 | E15: 2465.42 | F15: 122.44 | H15: 2465.42 | I15: 2465.42 | J15: 122.44 | L15: 2465.42 | M15: 2465.42 | N15: 122.44 | P15: 2465.42 | Q15: 2465.42 | R15: 122.44 | T15: 2465.42 | U15: 2465.42 | V15: 106.11 | X15: 2465.42 | Y15: 2465.42 | Z15: 106.11 | AB15: 2465.42 | AC15: 2465.42 | AD15: 106.11 | AF15: 2465.42 | AG15: 2465.42 | AH15: 106.11 | AJ15: 19723.36 | AK15: 19723.36 | AL15: 914.2 | AM15: 0
A16: Federal Withholding | B16: Adkisson | D16: 2465.42 | E16: 2465.42 | F16: 176.89 | H16: 2465.42 | I16: 2465.42 | J16: 176.89 | L16: 2465.42 | M16: 2465.42 | N16: 176.89 | P16: 2465.42 | Q16: 2465.42 | R16: 176.89 | T16: 2465.42 | U16: 2465.42 | V16: 176.89 | X16: 2465.42 | Y16: 2465.42 | Z16: 176.89 | AB16: 2465.42 | AC16: 2465.42 | AD16: 176.89 | AF16: 2465.42 | AG16: 2465.42 | AH16: 176.89 | AJ16: 19723.36 | AK16: 19723.36 | AL16: 1415.12 | AM16: 0
A17: Medicare Employee | B17: Adkisson | D17: 2541.67 | E17: 2541.67 | F17: 36.85 | H17: 2541.67 | I17: 2541.67 | J17: 36.86 | L17: 2541.67 | M17: 2541.67 | N17: 36.85 | P17: 2541.67 | Q17: 2541.67 | R17: 36.86 | T17: 2541.67 | U17: 2541.67 | V17: 36.85 | X17: 2541.67 | Y17: 2541.67 | Z17: 36.86 | AB17: 2541.67 | AC17: 2541.67 | AD17: 36.85 | AF17: 2541.67 | AG17: 2541.67 | AH17: 36.85 | AJ17: 20333.36 | AK17: 20333.36 | AL17: 294.83 | AM17: 0
A18: Social Security Employee | B18: Adkisson | D18: 2541.67 | E18: 2541.67 | F18: 157.58 | H18: 2541.67 | I18: 2541.67 | J18: 157.59 | L18: 2541.67 | M18: 2541.67 | N18: 157.58 | P18: 2541.67 | Q18: 2541.67 | R18: 157.58 | T18: 2541.67 | U18: 2541.67 | V18: 157.59 | X18: 2541.67 | Y18: 2541.67 | Z18: 157.58 | AB18: 2541.67 | AC18: 2541.67 | AD18: 157.58 | AF18: 2541.67 | AG18: 2541.67 | AH18: 157.59 | AJ18: 20333.36 | AK18: 20333.36 | AL18: 1260.67 | AM18: 0
A19: Total - Withholding | F19: =SUM(F14:F18) -> 493.76 | J19: =SUM(J14:J18) -> 493.78 | N19: =SUM(N14:N18) -> 493.76 | R19: =SUM(R14:R18) -> 493.77 | V19: =SUM(V14:V18) -> 477.44 | Z19: =SUM(Z14:Z18) -> 477.44 | AD19: =SUM(AD14:AD18) -> 477.43 | AH19: =SUM(AH14:AH18) -> 477.44 | AL19: =SUM(AL14:AL18) -> 3884.82
A20: Deduction
A21: 403(b) | B21: Adkisson | F21: 76.25 | J21: 76.25 | N21: 76.25 | R21: 76.25 | V21: 76.25 | Z21: 76.25 | AD21: 76.25 | AH21: 76.25 | AJ21: =SUM(D21,H21,L21,P21,T21,X21,AB21,AF21) -> 0 | AK21: =SUM(E21,I21,M21,Q21,U21,Y21,AC21,AG21) -> 0 | AL21: =SUM(F21,J21,N21,R21,V21,Z21,AD21,AH21) -> 610 | AM21: =SUM(G21,K21,O21,S21,W21,AA21,AE21,AI21) -> 0
A22: Total - Deduction | F22: =SUM(F21) -> 76.25 | J22: =SUM(J21) -> 76.25 | N22: =SUM(N21) -> 76.25 | R22: =SUM(R21) -> 76.25 | V22: =SUM(V21) -> 76.25 | Z22: =SUM(Z21) -> 76.25 | AD22: =SUM(AD21) -> 76.25 | AH22: =SUM(AH21) -> 76.25 | AL22: =SUM(AL21) -> 610
A23: Company Contribution
A24: Arkansas Unemployment | B24: Adkisson | D24: 2541.67 | E24: 0 | F24: 0 | H24: 2541.67 | I24: 0 | J24: 0 | L24: 2541.67 | M24: 0 | N24: 0 | P24: 2541.67 | Q24: 0 | R24: 0 | T24: 2541.67 | U24: 0 | V24: 0 | X24: 2541.67 | Y24: 0 | Z24: 0 | AB24: 2541.67 | AC24: 0 | AD24: 0 | AF24: 2541.67 | AG24: 0 | AH24: 0 | AJ24: =SUM(D24,H24,L24,P24,T24,X24,AB24,AF24) -> 20333.36 | AK24: 0 | AL24: 0 | AM24: 0
A25: Federal Unemployment | B25: Adkisson | D25: 2541.67 | E25: 0 | F25: 0 | H25: 2541.67 | I25: 0 | J25: 0 | L25: 2541.67 | M25: 0 | N25: 0 | P25: 2541.67 | Q25: 0 | R25: 0 | T25: 2541.67 | U25: 0 | V25: 0 | X25: 2541.67 | Y25: 0 | Z25: 0 | AB25: 2541.67 | AC25: 0 | AD25: 0 | AF25: 2541.67 | AG25: 0 | AH25: 0 | AJ25: 20333.36 | AK25: 0 | AL25: 0 | AM25: 0
A26: Medicare Company | B26: Adkisson | D26: 2541.67 | E26: 2541.67 | F26: 36.85 | H26: 2541.67 | I26: 2541.67 | J26: 36.86 | L26: 2541.67 | M26: 2541.67 | N26: 36.85 | P26: 2541.67 | Q26: 2541.67 | R26: 36.86 | T26: 2541.67 | U26: 2541.67 | V26: 36.85 | X26: 2541.67 | Y26: 2541.67 | Z26: 36.86 | AB26: 2541.67 | AC26: 2541.67 | AD26: 36.85 | AF26: 2541.67 | AG26: 2541.67 | AH26: 36.85 | AJ26: 20333.36 | AK26: 20333.36 | AL26: 294.83 | AM26: 0
A27: Social Security Company | B27: Adkisson | D27: 2541.67 | E27: 2541.67 | F27: 157.58 | H27: 2541.67 | I27: 2541.67 | J27: 157.59 | L27: 2541.67 | M27: 2541.67 | N27: 157.58 | P27: 2541.67 | Q27: 2541.67 | R27: 157.58 | T27: 2541.67 | U27: 2541.67 | V27: 157.59 | X27: 2541.67 | Y27: 2541.67 | Z27: 157.58 | AB27: 2541.67 | AC27: 2541.67 | AD27: 157.58 | AF27: 2541.67 | AG27: 2541.67 | AH27: 157.59 | AJ27: 20333.36 | AK27: 20333.36 | AL27: 1260.67 | AM27: 0
A28: Total - Company Contribution | F28: =SUM(F24:F27) -> 194.43 | J28: =SUM(J24:J27) -> 194.45 | N28: =SUM(N24:N27) -> 194.43 | R28: =SUM(R24:R27) -> 194.44 | V28: =SUM(V24:V27) -> 194.44 | Z28: =SUM(Z24:Z27) -> 194.44 | AD28: =SUM(AD24:AD27) -> 194.43 | AH28: =SUM(AH24:AH27) -> 194.44 | AL28: =SUM(AL24:AL27) -> 1555.5
A29: Total Net Pay Danielle D Adkisson | F29: =1 *(SUM(F12))+-1 *(SUM(F19))+-1 *(SUM(F22))+0 *(SUM(F28)) -> 1971.66 | J29: =1 *(SUM(J12))+-1 *(SUM(J19))+-1 *(SUM(J22))+0 *(SUM(J28)) -> 1971.64 | N29: =1 *(SUM(N12))+-1 *(SUM(N19))+-1 *(SUM(N22))+0 *(SUM(N28)) -> 1971.66 | R29: =1 *(SUM(R12))+-1 *(SUM(R19))+-1 *(SUM(R22))+0 *(SUM(R28)) -> 1971.65 | V29: =1 *(SUM(V12))+-1 *(SUM(V19))+-1 *(SUM(V22))+0 *(SUM(V28)) -> 1987.98 | Z29: =1 *(SUM(Z12))+-1 *(SUM(Z19))+-1 *(SUM(Z22))+0 *(SUM(Z28)) -> 1987.98 | AD29: =1 *(SUM(AD12))+-1 *(SUM(AD19))+-1 *(SUM(AD22))+0 *(SUM(AD28)) -> 1987.99 | AH29: =1 *(SUM(AH12))+-1 *(SUM(AH19))+-1 *(SUM(AH22))+0 *(SUM(AH28)) -> 1987.98 | AL29: =SUM(AL12,AL19,AL22,AL28) -> 26383.68
A30: Sarah Andrews | P30: 15750 | Q30: 10500 | R30: 1406.84 | S30: 86.6667 | T30: 15645 | U30: 10395 | V30: 1372.92 | W30: 86.6667 | X30: 15645 | Y30: 10395 | Z30: 1372.91 | AA30: 86.6667 | AB30: 15645 | AC30: 10395 | AD30: 1372.92 | AE30: 86.6667 | AF30: 15645 | AG30: 10395 | AH30: 1372.91 | AI30: 86.6667 | AJ30: 78330 | AK30: 52080 | AL30: 6898.5 | AM30: 433.3335
A31: Earning
A32: Salary - Office Assistant | B32: Andrews | R32: 1750 | S32: 86.6667 | V32: 1750 | W32: 86.6667 | Z32: 1750 | AA32: 86.6667 | AD32: 1750 | AE32: 86.6667 | AH32: 1750 | AI32: 86.6667 | AJ32: =SUM(D32,H32,L32,P32,T32,X32,AB32,AF32) -> 0 | AK32: =SUM(E32,I32,M32,Q32,U32,Y32,AC32,AG32) -> 0 | AL32: =SUM(F32,J32,N32,R32,V32,Z32,AD32,AH32) -> 8750 | AM32: =SUM(G32,K32,O32,S32,W32,AA32,AE32,AI32) -> 433.3335
A33: Total - Earning | F33: =SUM(F32) -> 0 | J33: =SUM(J32) -> 0 | N33: =SUM(N32) -> 0 | R33: =SUM(R32) -> 1750 | V33: =SUM(V32) -> 1750 | Z33: =SUM(Z32) -> 1750 | AD33: =SUM(AD32) -> 1750 | AH33: =SUM(AH32) -> 1750 | AL33: =SUM(AL32) -> 8750
A34: Withholding
A35: Additional Medicare | B35: Andrews | P35: 1750 | Q35: 0 | R35: 0 | T35: 1750 | U35: 0 | V35: 0 | X35: 1750 | Y35: 0 | Z35: 0 | AB35: 1750 | AC35: 0 | AD35: 0 | AF35: 1750 | AG35: 0 | AH35: 0 | AJ35: =SUM(D35,H35,L35,P35,T35,X35,AB35,AF35) -> 8750 | AK35: 0 | AL35: 0 | AM35: 0
A36: Arkansas Withholding | B36: Andrews | P36: 1750 | Q36: 1750 | R36: 75.24 | T36: 1697.5 | U36: 1697.5 | V36: 62.97 | X36: 1697.5 | Y36: 1697.5 | Z36: 62.97 | AB36: 1697.5 | AC36: 1697.5 | AD36: 62.97 | AF36: 1697.5 | AG36: 1697.5 | AH36: 62.97 | AJ36: 8540 | AK36: 8540 | AL36: 327.12 | AM36: 0
A37: Federal Withholding | B37: Andrews | P37: 1750 | Q37: 1750 | R37: 134.04 | T37: 1697.5 | U37: 1697.5 | V37: 127.74 | X37: 1697.5 | Y37: 1697.5 | Z37: 127.74 | AB37: 1697.5 | AC37: 1697.5 | AD37: 127.74 | AF37: 1697.5 | AG37: 1697.5 | AH37: 127.74 | AJ37: 8540 | AK37: 8540 | AL37: 645 | AM37: 0
A38: Medicare Employee | B38: Andrews | P38: 1750 | Q38: 1750 | R38: 25.38 | T38: 1750 | U38: 1750 | V38: 25.37 | X38: 1750 | Y38: 1750 | Z38: 25.38 | AB38: 1750 | AC38: 1750 | AD38: 25.37 | AF38: 1750 | AG38: 1750 | AH38: 25.38 | AJ38: 8750 | AK38: 8750 | AL38: 126.88 | AM38: 0
A39: Social Security Employee | B39: Andrews | P39: 1750 | Q39: 1750 | R39: 108.5 | T39: 1750 | U39: 1750 | V39: 108.5 | X39: 1750 | Y39: 1750 | Z39: 108.5 | AB39: 1750 | AC39: 1750 | AD39: 108.5 | AF39: 1750 | AG39: 1750 | AH39: 108.5 | AJ39: 8750 | AK39: 8750 | AL39: 542.5 | AM39: 0
A40: Total - Withholding | F40: =SUM(F35:F39) -> 0 | J40: =SUM(J35:J39) -> 0 | N40: =SUM(N35:N39) -> 0 | R40: =SUM(R35:R39) -> 343.16 | V40: =SUM(V35:V39) -> 324.58 | Z40: =SUM(Z35:Z39) -> 324.59 | AD40: =SUM(AD35:AD39) -> 324.58 | AH40: =SUM(AH35:AH39) -> 324.59 | AL40: =SUM(AL35:AL39) -> 1641.5
A41: Deduction
A42: 403(b) | B42: Andrews | V42: 52.5 | Z42: 52.5 | AD42: 52.5 | AH42: 52.5 | AJ42: =SUM(D42,H42,L42,P42,T42,X42,AB42,AF42) -> 0 | AK42: =SUM(E42,I42,M42,Q42,U42,Y42,AC42,AG42) -> 0 | AL42: =SUM(F42,J42,N42,R42,V42,Z42,AD42,AH42) -> 210 | AM42: =SUM(G42,K42,O42,S42,W42,AA42,AE42,AI42) -> 0
A43: Total - Deduction | F43: =SUM(F42) -> 0 | J43: =SUM(J42) -> 0 | N43: =SUM(N42) -> 0 | R43: =SUM(R42) -> 0 | V43: =SUM(V42) -> 52.5 | Z43: =SUM(Z42) -> 52.5 | AD43: =SUM(AD42) -> 52.5 | AH43: =SUM(AH42) -> 52.5 | AL43: =SUM(AL42) -> 210
A44: Company Contribution
A45: Arkansas Unemployment | B45: Andrews | P45: 1750 | Q45: 0 | R45: 0 | T45: 1750 | U45: 0 | V45: 0 | X45: 1750 | Y45: 0 | Z45: 0 | AB45: 1750 | AC45: 0 | AD45: 0 | AF45: 1750 | AG45: 0 | AH45: 0 | AJ45: =SUM(D45,H45,L45,P45,T45,X45,AB45,AF45) -> 8750 | AK45: 0 | AL45: 0 | AM45: 0
A46: Federal Unemployment | B46: Andrews | P46: 1750 | Q46: 0 | R46: 0 | T46: 1750 | U46: 0 | V46: 0 | X46: 1750 | Y46: 0 | Z46: 0 | AB46: 1750 | AC46: 0 | AD46: 0 | AF46: 1750 | AG46: 0 | AH46: 0 | AJ46: 8750 | AK46: 0 | AL46: 0 | AM46: 0
A47: Medicare Company | B47: Andrews | P47: 1750 | Q47: 1750 | R47: 25.38 | T47: 1750 | U47: 1750 | V47: 25.37 | X47: 1750 | Y47: 1750 | Z47: 25.38 | AB47: 1750 | AC47: 1750 | AD47: 25.37 | AF47: 1750 | AG47: 1750 | AH47: 25.38 | AJ47: 8750 | AK47: 8750 | AL47: 126.88 | AM47: 0
A48: Social Security Company | B48: Andrews | P48: 1750 | Q48: 1750 | R48: 108.5 | T48: 1750 | U48: 1750 | V48: 108.5 | X48: 1750 | Y48: 1750 | Z48: 108.5 | AB48: 1750 | AC48: 1750 | AD48: 108.5 | AF48: 1750 | AG48: 1750 | AH48: 108.5 | AJ48: 8750 | AK48: 8750 | AL48: 542.5 | AM48: 0
A49: Total - Company Contribution | F49: =SUM(F45:F48) -> 0 | J49: =SUM(J45:J48) -> 0 | N49: =SUM(N45:N48) -> 0 | R49: =SUM(R45:R48) -> 133.88 | V49: =SUM(V45:V48) -> 133.87 | Z49: =SUM(Z45:Z48) -> 133.88 | AD49: =SUM(AD45:AD48) -> 133.87 | AH49: =SUM(AH45:AH48) -> 133.88 | AL49: =SUM(AL45:AL48) -> 669.38
A50: Total Net Pay Sarah Andrews | F50: =1 *(SUM(F33))+-1 *(SUM(F40))+-1 *(SUM(F43))+0 *(SUM(F49)) -> 0 | J50: =1 *(SUM(J33))+-1 *(SUM(J40))+-1 *(SUM(J43))+0 *(SUM(J49)) -> 0 | N50: =1 *(SUM(N33))+-1 *(SUM(N40))+-1 *(SUM(N43))+0 *(SUM(N49)) -> 0 | R50: =1 *(SUM(R33))+-1 *(SUM(R40))+-1 *(SUM(R43))+0 *(SUM(R49)) -> 1406.84 | V50: =1 *(SUM(V33))+-1 *(SUM(V40))+-1 *(SUM(V43))+0 *(SUM(V49)) -> 1372.92 | Z50: =1 *(SUM(Z33))+-1 *(SUM(Z40))+-1 *(SUM(Z43))+0 *(SUM(Z49)) -> 1372.91 | AD50: =1 *(SUM(AD33))+-1 *(SUM(AD40))+-1 *(SUM(AD43))+0 *(SUM(AD49)) -> 1372.92 | AH50: =1 *(SUM(AH33))+-1 *(SUM(AH40))+-1 *(SUM(AH43))+0 *(SUM(AH49)) -> 1372.91 | AL50: =SUM(AL33,AL40,AL43,AL49) -> 11270.88
A51: Yvonne Armstrong | C51: FT | D51: 11475 | E51: 7650 | F51: 988.29 | G51: 86.6667 | H51: 11475 | I51: 7650 | J51: 988.3 | K51: 86.6667 | L51: 11475 | M51: 7650 | N51: 988.29 | O51: 86.6667 | P51: 11475 | Q51: 7650 | R51: 988.29 | S51: 86.6667 | T51: 11475 | U51: 7650 | V51: 991.94 | W51: 86.6667 | X51: 11475 | Y51: 7650 | Z51: 991.95 | AA51: 86.6667 | AJ51: 68850 | AK51: 45900 | AL51: 5937.06 | AM51: 520.0002
A52: Earning
A53: Salary - Office Assistant | B53: Armstrong | F53: 1458.33 | G53: 86.6667 | J53: 1458.33 | K53: 86.6667 | N53: 1458.33 | O53: 86.6667 | R53: 1458.33 | S53: 86.6667 | V53: 1458.33 | W53: 86.6667 | Z53: 1458.33 | AA53: 86.6667 | AJ53: =SUM(D53,H53,L53,P53,T53,X53,AB53,AF53) -> 0 | AK53: =SUM(E53,I53,M53,Q53,U53,Y53,AC53,AG53) -> 0 | AL53: =SUM(F53,J53,N53,R53,V53,Z53,AD53,AH53) -> 8749.98 | AM53: =SUM(G53,K53,O53,S53,W53,AA53,AE53,AI53) -> 520.0002
A54: Total - Earning | F54: =SUM(F53) -> 1458.33 | J54: =SUM(J53) -> 1458.33 | N54: =SUM(N53) -> 1458.33 | R54: =SUM(R53) -> 1458.33 | V54: =SUM(V53) -> 1458.33 | Z54: =SUM(Z53) -> 1458.33 | AD54: =SUM(AD53) -> 0 | AH54: =SUM(AH53) -> 0 | AL54: =SUM(AL53) -> 8749.98
A55: Withholding
A56: Additional Medicare | B56: Armstrong | D56: 1275 | E56: 0 | F56: 0 | H56: 1275 | I56: 0 | J56: 0 | L56: 1275 | M56: 0 | N56: 0 | P56: 1275 | Q56: 0 | R56: 0 | T56: 1275 | U56: 0 | V56: 0 | X56: 1275 | Y56: 0 | Z56: 0 | AJ56: =SUM(D56,H56,L56,P56,T56,X56,AB56,AF56) -> 7650 | AK56: 0 | AL56: 0 | AM56: 0
A57: Arkansas Withholding | B57: Armstrong | D57: 1275 | E57: 1275 | F57: 44.17 | H57: 1275 | I57: 1275 | J57: 44.17 | L57: 1275 | M57: 1275 | N57: 44.17 | P57: 1275 | Q57: 1275 | R57: 44.17 | T57: 1275 | U57: 1275 | V57: 40.52 | X57: 1275 | Y57: 1275 | Z57: 40.52 | AJ57: 7650 | AK57: 7650 | AL57: 257.72 | AM57: 0
A58: Federal Withholding | B58: Armstrong | D58: 1275 | E58: 1275 | F58: 145 | H58: 1275 | I58: 1275 | J58: 145 | L58: 1275 | M58: 1275 | N58: 145 | P58: 1275 | Q58: 1275 | R58: 145 | T58: 1275 | U58: 1275 | V58: 145 | X58: 1275 | Y58: 1275 | Z58: 145 | AJ58: 7650 | AK58: 7650 | AL58: 870 | AM58: 0
A59: Medicare Employee | B59: Armstrong | D59: 1275 | E59: 1275 | F59: 18.49 | H59: 1275 | I59: 1275 | J59: 18.48 | L59: 1275 | M59: 1275 | N59: 18.49 | P59: 1275 | Q59: 1275 | R59: 18.49 | T59: 1275 | U59: 1275 | V59: 18.49 | X59: 1275 | Y59: 1275 | Z59: 18.48 | AJ59: 7650 | AK59: 7650 | AL59: 110.92 | AM59: 0
A60: Social Security Employee | B60: Armstrong | D60: 1275 | E60: 1275 | F60: 79.05 | H60: 1275 | I60: 1275 | J60: 79.05 | L60: 1275 | M60: 1275 | N60: 79.05 | P60: 1275 | Q60: 1275 | R60: 79.05 | T60: 1275 | U60: 1275 | V60: 79.05 | X60: 1275 | Y60: 1275 | Z60: 79.05 | AJ60: 7650 | AK60: 7650 | AL60: 474.3 | AM60: 0
A61: Total - Withholding | F61: =SUM(F56:F60) -> 286.71 | J61: =SUM(J56:J60) -> 286.7 | N61: =SUM(N56:N60) -> 286.71 | R61: =SUM(R56:R60) -> 286.71 | V61: =SUM(V56:V60) -> 283.06 | Z61: =SUM(Z56:Z60) -> 283.05 | AD61: =SUM(AD56:AD60) -> 0 | AH61: =SUM(AH56:AH60) -> 0 | AL61: =SUM(AL56:AL60) -> 1712.94
A62: Deduction
A63: HSA Contribution | B63: Armstrong | F63: 183.33 | J63: 183.33 | N63: 183.33 | R63: 183.33 | V63: 183.33 | Z63: 183.33 | AJ63: =SUM(D63,H63,L63,P63,T63,X63,AB63,AF63) -> 0 | AK63: =SUM(E63,I63,M63,Q63,U63,Y63,AC63,AG63) -> 0 | AL63: =SUM(F63,J63,N63,R63,V63,Z63,AD63,AH63) -> 1099.98 | AM63: =SUM(G63,K63,O63,S63,W63,AA63,AE63,AI63) -> 0
A64: Total - Deduction | F64: =SUM(F63) -> 183.33 | J64: =SUM(J63) -> 183.33 | N64: =SUM(N63) -> 183.33 | R64: =SUM(R63) -> 183.33 | V64: =SUM(V63) -> 183.33 | Z64: =SUM(Z63) -> 183.33 | AD64: =SUM(AD63) -> 0 | AH64: =SUM(AH63) -> 0 | AL64: =SUM(AL63) -> 1099.98
A65: Company Contribution
A66: Arkansas Unemployment | B66: Armstrong | D66: 1275 | E66: 0 | F66: 0 | H66: 1275 | I66: 0 | J66: 0 | L66: 1275 | M66: 0 | N66: 0 | P66: 1275 | Q66: 0 | R66: 0 | T66: 1275 | U66: 0 | V66: 0 | X66: 1275 | Y66: 0 | Z66: 0 | AJ66: =SUM(D66,H66,L66,P66,T66,X66,AB66,AF66) -> 7650 | AK66: 0 | AL66: 0 | AM66: 0
A67: Federal Unemployment | B67: Armstrong | D67: 1275 | E67: 0 | F67: 0 | H67: 1275 | I67: 0 | J67: 0 | L67: 1275 | M67: 0 | N67: 0 | P67: 1275 | Q67: 0 | R67: 0 | T67: 1275 | U67: 0 | V67: 0 | X67: 1275 | Y67: 0 | Z67: 0 | AJ67: 7650 | AK67: 0 | AL67: 0 | AM67: 0
A68: Medicare Company | B68: Armstrong | D68: 1275 | E68: 1275 | F68: 18.49 | H68: 1275 | I68: 1275 | J68: 18.48 | L68: 1275 | M68: 1275 | N68: 18.49 | P68: 1275 | Q68: 1275 | R68: 18.49 | T68: 1275 | U68: 1275 | V68: 18.49 | X68: 1275 | Y68: 1275 | Z68: 18.48 | AJ68: 7650 | AK68: 7650 | AL68: 110.92 | AM68: 0
A69: Social Security Company | B69: Armstrong | D69: 1275 | E69: 1275 | F69: 79.05 | H69: 1275 | I69: 1275 | J69: 79.05 | L69: 1275 | M69: 1275 | N69: 79.05 | P69: 1275 | Q69: 1275 | R69: 79.05 | T69: 1275 | U69: 1275 | V69: 79.05 | X69: 1275 | Y69: 1275 | Z69: 79.05 | AJ69: 7650 | AK69: 7650 | AL69: 474.3 | AM69: 0
A70: Total - Company Contribution | F70: =SUM(F66:F69) -> 97.54 | J70: =SUM(J66:J69) -> 97.53 | N70: =SUM(N66:N69) -> 97.54 | R70: =SUM(R66:R69) -> 97.54 | V70: =SUM(V66:V69) -> 97.54 | Z70: =SUM(Z66:Z69) -> 97.53 | AD70: =SUM(AD66:AD69) -> 0 | AH70: =SUM(AH66:AH69) -> 0 | AL70: =SUM(AL66:AL69) -> 585.22
A71: Total Net Pay Yvonne Armstrong | F71: =1 *(SUM(F54))+-1 *(SUM(F61))+-1 *(SUM(F64))+0 *(SUM(F70)) -> 988.29 | J71: =1 *(SUM(J54))+-1 *(SUM(J61))+-1 *(SUM(J64))+0 *(SUM(J70)) -> 988.3 | N71: =1 *(SUM(N54))+-1 *(SUM(N61))+-1 *(SUM(N64))+0 *(SUM(N70)) -> 988.29 | R71: =1 *(SUM(R54))+-1 *(SUM(R61))+-1 *(SUM(R64))+0 *(SUM(R70)) -> 988.29 | V71: =1 *(SUM(V54))+-1 *(SUM(V61))+-1 *(SUM(V64))+0 *(SUM(V70)) -> 991.94 | Z71: =1 *(SUM(Z54))+-1 *(SUM(Z61))+-1 *(SUM(Z64))+0 *(SUM(Z70)) -> 991.95 | AD71: =1 *(SUM(AD54))+-1 *(SUM(AD61))+-1 *(SUM(AD64))+0 *(SUM(AD70)) -> 0 | AH71: =1 *(SUM(AH54))+-1 *(SUM(AH61))+-1 *(SUM(AH64))+0 *(SUM(AH70)) -> 0 | AL71: =SUM(AL54,AL61,AL64,AL70) -> 12148.12
A72: Blake Bradford | C72: FT | D72: 43273.3 | E72: 0 | F72: 5451.66 | G72: 86.6667 | H72: 44169.14 | I72: 0 | J72: 6347.5 | K72: 86.6667 | L72: 43273.31 | M72: 0 | N72: 5451.67 | O72: 86.6667 | P72: 43273.31 | Q72: 0 | R72: 5451.67 | S72: 86.6667 | T72: 43273.31 | U72: 0 | V72: 5451.67 | W72: 86.6667 | X72: 43273.31 | Y72: 0 | Z72: 5451.67 | AA72: 86.6667 | AB72: 43273.31 | AC72: 0 | AD72: 5451.67 | AE72: 86.6667 | AF72: 43273.31 | AG72: 0 | AH72: 5451.67 | AI72: 86.6667 | AJ72: 347082.3 | AK72: 0 | AL72: 44509.18 | AM72: 693.3336
A73: Earning
A74: Housing - District Portion | B74: Bradford | J74: 1791.67 | K74: 0 | N74: 895.84 | O74: 0 | R74: 895.84 | S74: 0 | V74: 895.84 | W74: 0 | Z74: 895.84 | AA74: 0 | AD74: 895.84 | AE74: 0 | AH74: 895.84 | AI74: 0 | AJ74: =SUM(D74,H74,L74,P74,T74,X74,AB74,AF74) -> 0 | AK74: 0 | AL74: 7166.71 | AM74: 0
A75: Housing - District Superintende | B75: Bradford | F75: 1270.83 | G75: 0 | J75: 375 | K75: 0 | N75: 375 | O75: 0 | R75: 375 | S75: 0 | V75: 375 | W75: 0 | Z75: 375 | AA75: 0 | AD75: 375 | AE75: 0 | AH75: 375 | AI75: 0 | AJ75: 0 | AK75: 0 | AL75: 3895.83 | AM75: 0
A76: Salary - DS Taxable | B76: Bradford | F76: 4805.83 | G76: 86.6667 | J76: 4805.83 | K76: 86.6667 | N76: 4805.83 | O76: 86.6667 | R76: 4805.83 | S76: 86.6667 | V76: 4805.83 | W76: 86.6667 | Z76: 4805.83 | AA76: 86.6667 | AD76: 4805.83 | AE76: 86.6667 | AH76: 4805.83 | AI76: 86.6667 | AJ76: 0 | AK76: 0 | AL76: 38446.64 | AM76: 693.3336
A77: Total - Earning | F77: =SUM(F74:F76) -> 6076.66 | J77: =SUM(J74:J76) -> 6972.5 | N77: =SUM(N74:N76) -> 6076.67 | R77: =SUM(R74:R76) -> 6076.67 | V77: =SUM(V74:V76) -> 6076.67 | Z77: =SUM(Z74:Z76) -> 6076.67 | AD77: =SUM(AD74:AD76) -> 6076.67 | AH77: =SUM(AH74:AH76) -> 6076.67 | AL77: =SUM(AL74:AL76) -> 49509.18
A78: Withholding
A79: Additional Medicare | B79: Bradford | D79: 4805.83 | E79: 0 | F79: 0 | H79: 4805.83 | I79: 0 | J79: 0 | L79: 4805.83 | M79: 0 | N79: 0 | P79: 4805.83 | Q79: 0 | R79: 0 | T79: 4805.83 | U79: 0 | V79: 0 | X79: 4805.83 | Y79: 0 | Z79: 0 | AB79: 4805.83 | AC79: 0 | AD79: 0 | AF79: 4805.83 | AG79: 0 | AH79: 0 | AJ79: =SUM(D79,H79,L79,P79,T79,X79,AB79,AF79) -> 38446.64 | AK79: 0 | AL79: 0 | AM79: 0
A80: Arkansas Withholding | B80: Bradford | D80: 4180.83 | E80: 0 | F80: 0 | H80: 4180.83 | I80: 0 | J80: 0 | L80: 4180.83 | M80: 0 | N80: 0 | P80: 4180.83 | Q80: 0 | R80: 0 | T80: 4180.83 | U80: 0 | V80: 0 | X80: 4180.83 | Y80: 0 | Z80: 0 | AB80: 4180.83 | AC80: 0 | AD80: 0 | AF80: 4180.83 | AG80: 0 | AH80: 0 | AJ80: 33446.64 | AK80: 0 | AL80: 0 | AM80: 0
A81: Federal Withholding | B81: Bradford | D81: 4180.83 | E81: 0 | F81: 0 | H81: 4180.83 | I81: 0 | J81: 0 | L81: 4180.83 | M81: 0 | N81: 0 | P81: 4180.83 | Q81: 0 | R81: 0 | T81: 4180.83 | U81: 0 | V81: 0 | X81: 4180.83 | Y81: 0 | Z81: 0 | AB81: 4180.83 | AC81: 0 | AD81: 0 | AF81: 4180.83 | AG81: 0 | AH81: 0 | AJ81: 33446.64 | AK81: 0 | AL81: 0 | AM81: 0
A82: Medicare Employee | B82: Bradford | D82: 4805.83 | E82: 0 | F82: 0 | H82: 4805.83 | I82: 0 | J82: 0 | L82: 4805.83 | M82: 0 | N82: 0 | P82: 4805.83 | Q82: 0 | R82: 0 | T82: 4805.83 | U82: 0 | V82: 0 | X82: 4805.83 | Y82: 0 | Z82: 0 | AB82: 4805.83 | AC82: 0 | AD82: 0 | AF82: 4805.83 | AG82: 0 | AH82: 0 | AJ82: 38446.64 | AK82: 0 | AL82: 0 | AM82: 0
A83: Social Security Employee | B83: Bradford | D83: 4805.83 | E83: 0 | F83: 0 | H83: 4805.83 | I83: 0 | J83: 0 | L83: 4805.83 | M83: 0 | N83: 0 | P83: 4805.83 | Q83: 0 | R83: 0 | T83: 4805.83 | U83: 0 | V83: 0 | X83: 4805.83 | Y83: 0 | Z83: 0 | AB83: 4805.83 | AC83: 0 | AD83: 0 | AF83: 4805.83 | AG83: 0 | AH83: 0 | AJ83: 38446.64 | AK83: 0 | AL83: 0 | AM83: 0
A84: Total - Withholding | F84: =SUM(F79:F83) -> 0 | J84: =SUM(J79:J83) -> 0 | N84: =SUM(N79:N83) -> 0 | R84: =SUM(R79:R83) -> 0 | V84: =SUM(V79:V83) -> 0 | Z84: =SUM(Z79:Z83) -> 0 | AD84: =SUM(AD79:AD83) -> 0 | AH84: =SUM(AH79:AH83) -> 0 | AL84: =SUM(AL79:AL83) -> 0
A85: Deduction
A86: 403(b) | B86: Bradford | F86: 625 | J86: 625 | N86: 625 | R86: 625 | V86: 625 | Z86: 625 | AD86: 625 | AH86: 625 | AJ86: =SUM(D86,H86,L86,P86,T86,X86,AB86,AF86) -> 0 | AK86: =SUM(E86,I86,M86,Q86,U86,Y86,AC86,AG86) -> 0 | AL86: =SUM(F86,J86,N86,R86,V86,Z86,AD86,AH86) -> 5000 | AM86: =SUM(G86,K86,O86,S86,W86,AA86,AE86,AI86) -> 0
A87: Total - Deduction | F87: =SUM(F86) -> 625 | J87: =SUM(J86) -> 625 | N87: =SUM(N86) -> 625 | R87: =SUM(R86) -> 625 | V87: =SUM(V86) -> 625 | Z87: =SUM(Z86) -> 625 | AD87: =SUM(AD86) -> 625 | AH87: =SUM(AH86) -> 625 | AL87: =SUM(AL86) -> 5000
A88: Company Contribution
A89: Arkansas Unemployment | B89: Bradford | D89: 6076.66 | E89: 0 | F89: 0 | H89: 6972.5 | I89: 0 | J89: 0 | L89: 6076.67 | M89: 0 | N89: 0 | P89: 6076.67 | Q89: 0 | R89: 0 | T89: 6076.67 | U89: 0 | V89: 0 | X89: 6076.67 | Y89: 0 | Z89: 0 | AB89: 6076.67 | AC89: 0 | AD89: 0 | AF89: 6076.67 | AG89: 0 | AH89: 0 | AJ89: =SUM(D89,H89,L89,P89,T89,X89,AB89,AF89) -> 49509.18 | AK89: 0 | AL89: 0 | AM89: 0
A90: Federal Unemployment | B90: Bradford | D90: 4805.83 | E90: 0 | F90: 0 | H90: 4805.83 | I90: 0 | J90: 0 | L90: 4805.83 | M90: 0 | N90: 0 | P90: 4805.83 | Q90: 0 | R90: 0 | T90: 4805.83 | U90: 0 | V90: 0 | X90: 4805.83 | Y90: 0 | Z90: 0 | AB90: 4805.83 | AC90: 0 | AD90: 0 | AF90: 4805.83 | AG90: 0 | AH90: 0 | AJ90: 38446.64 | AK90: 0 | AL90: 0 | AM90: 0
A91: Medicare Company | B91: Bradford | D91: 4805.83 | E91: 0 | F91: 0 | H91: 4805.83 | I91: 0 | J91: 0 | L91: 4805.83 | M91: 0 | N91: 0 | P91: 4805.83 | Q91: 0 | R91: 0 | T91: 4805.83 | U91: 0 | V91: 0 | X91: 4805.83 | Y91: 0 | Z91: 0 | AB91: 4805.83 | AC91: 0 | AD91: 0 | AF91: 4805.83 | AG91: 0 | AH91: 0 | AJ91: 38446.64 | AK91: 0 | AL91: 0 | AM91: 0
A92: Social Security Company | B92: Bradford | D92: 4805.83 | E92: 0 | F92: 0 | H92: 4805.83 | I92: 0 | J92: 0 | L92: 4805.83 | M92: 0 | N92: 0 | P92: 4805.83 | Q92: 0 | R92: 0 | T92: 4805.83 | U92: 0 | V92: 0 | X92: 4805.83 | Y92: 0 | Z92: 0 | AB92: 4805.83 | AC92: 0 | AD92: 0 | AF92: 4805.83 | AG92: 0 | AH92: 0 | AJ92: 38446.64 | AK92: 0 | AL92: 0 | AM92: 0
A93: Total - Company Contribution | F93: =SUM(F89:F92) -> 0 | J93: =SUM(J89:J92) -> 0 | N93: =SUM(N89:N92) -> 0 | R93: =SUM(R89:R92) -> 0 | V93: =SUM(V89:V92) -> 0 | Z93: =SUM(Z89:Z92) -> 0 | AD93: =SUM(AD89:AD92) -> 0 | AH93: =SUM(AH89:AH92) -> 0 | AL93: =SUM(AL89:AL92) -> 0
A94: Total Net Pay Blake Bradford | F94: =1 *(SUM(F77))+-1 *(SUM(F84))+-1 *(SUM(F87))+0 *(SUM(F93)) -> 5451.66 | J94: =1 *(SUM(J77))+-1 *(SUM(J84))+-1 *(SUM(J87))+0 *(SUM(J93)) -> 6347.5 | N94: =1 *(SUM(N77))+-1 *(SUM(N84))+-1 *(SUM(N87))+0 *(SUM(N93)) -> 5451.67 | R94: =1 *(SUM(R77))+-1 *(SUM(R84))+-1 *(SUM(R87))+0 *(SUM(R93)) -> 5451.67 | V94: =1 *(SUM(V77))+-1 *(SUM(V84))+-1 *(SUM(V87))+0 *(SUM(V93)) -> 5451.67 | Z94: =1 *(SUM(Z77))+-1 *(SUM(Z84))+-1 *(SUM(Z87))+0 *(SUM(Z93)) -> 5451.67 | AD94: =1 *(SUM(AD77))+-1 *(SUM(AD84))+-1 *(SUM(AD87))+0 *(SUM(AD93)) -> 5451.67 | AH94: =1 *(SUM(AH77))+-1 *(SUM(AH84))+-1 *(SUM(AH87))+0 *(SUM(AH93)) -> 5451.67 | AL94: =SUM(AL77,AL84,AL87,AL93) -> 54509.18
A95: Ellen C Bruce | C95: PT | D95: 3750.03 | E95: 2500.02 | F95: 371.77 | G95: 86.6667 | H95: 3750.03 | I95: 2500.02 | J95: 371.76 | K95: 86.6667 | L95: 3750.03 | M95: 2500.02 | N95: 371.76 | O95: 86.6667 | P95: 3750.03 | Q95: 2500.02 | R95: 371.77 | S95: 86.6667 | T95: 3750.03 | U95: 2500.02 | V95: 374.2 | W95: 86.6667 | X95: 3750.03 | Y95: 2500.02 | Z95: 374.21 | AA95: 86.6667 | AB95: 3750.03 | AC95: 2500.02 | AD95: 374.21 | AE95: 86.6667 | AF95: 3750.03 | AG95: 2500.02 | AH95: 374.2 | AI95: 86.6667 | AJ95: 30000.24 | AK95: 20000.16 | AL95: 2983.88 | AM95: 693.3336
A96: Earning
A97: Salary - Archivist | B97: Bruce | F97: 416.67 | G97: 86.6667 | J97: 416.67 | K97: 86.6667 | N97: 416.67 | O97: 86.6667 | R97: 416.67 | S97: 86.6667 | V97: 416.67 | W97: 86.6667 | Z97: 416.67 | AA97: 86.6667 | AD97: 416.67 | AE97: 86.6667 | AH97: 416.67 | AI97: 86.6667 | AJ97: =SUM(D97,H97,L97,P97,T97,X97,AB97,AF97) -> 0 | AK97: =SUM(E97,I97,M97,Q97,U97,Y97,AC97,AG97) -> 0 | AL97: =SUM(F97,J97,N97,R97,V97,Z97,AD97,AH97) -> 3333.36 | AM97: =SUM(G97,K97,O97,S97,W97,AA97,AE97,AI97) -> 693.3336
A98: Total - Earning | F98: =SUM(F97) -> 416.67 | J98: =SUM(J97) -> 416.67 | N98: =SUM(N97) -> 416.67 | R98: =SUM(R97) -> 416.67 | V98: =SUM(V97) -> 416.67 | Z98: =SUM(Z97) -> 416.67 | AD98: =SUM(AD97) -> 416.67 | AH98: =SUM(AH97) -> 416.67 | AL98: =SUM(AL97) -> 3333.36
A99: Withholding
A100: Additional Medicare | B100: Bruce | D100: 416.67 | E100: 0 | F100: 0 | H100: 416.67 | I100: 0 | J100: 0 | L100: 416.67 | M100: 0 | N100: 0 | P100: 416.67 | Q100: 0 | R100: 0 | T100: 416.67 | U100: 0 | V100: 0 | X100: 416.67 | Y100: 0 | Z100: 0 | AB100: 416.67 | AC100: 0 | AD100: 0 | AF100: 416.67 | AG100: 0 | AH100: 0 | AJ100: =SUM(D100,H100,L100,P100,T100,X100,AB100,AF100) -> 3333.36 | AK100: 0 | AL100: 0 | AM100: 0
A101: Arkansas Withholding | B101: Bruce | D101: 416.67 | E101: 416.67 | F101: 5.11 | H101: 416.67 | I101: 416.67 | J101: 5.11 | L101: 416.67 | M101: 416.67 | N101: 5.11 | P101: 416.67 | Q101: 416.67 | R101: 5.11 | T101: 416.67 | U101: 416.67 | V101: 2.67 | X101: 416.67 | Y101: 416.67 | Z101: 2.67 | AB101: 416.67 | AC101: 416.67 | AD101: 2.67 | AF101: 416.67 | AG101: 416.67 | AH101: 2.67 | AJ101: 3333.36 | AK101: 3333.36 | AL101: 31.12 | AM101: 0
A102: Federal Withholding | B102: Bruce | D102: 416.67 | E102: 416.67 | F102: 7.92 | H102: 416.67 | I102: 416.67 | J102: 7.92 | L102: 416.67 | M102: 416.67 | N102: 7.92 | P102: 416.67 | Q102: 416.67 | R102: 7.92 | T102: 416.67 | U102: 416.67 | V102: 7.92 | X102: 416.67 | Y102: 416.67 | Z102: 7.92 | AB102: 416.67 | AC102: 416.67 | AD102: 7.92 | AF102: 416.67 | AG102: 416.67 | AH102: 7.92 | AJ102: 3333.36 | AK102: 3333.36 | AL102: 63.36 | AM102: 0
A103: Medicare Employee | B103: Bruce | D103: 416.67 | E103: 416.67 | F103: 6.04 | H103: 416.67 | I103: 416.67 | J103: 6.04 | L103: 416.67 | M103: 416.67 | N103: 6.05 | P103: 416.67 | Q103: 416.67 | R103: 6.04 | T103: 416.67 | U103: 416.67 | V103: 6.04 | X103: 416.67 | Y103: 416.67 | Z103: 6.04 | AB103: 416.67 | AC103: 416.67 | AD103: 6.04 | AF103: 416.67 | AG103: 416.67 | AH103: 6.04 | AJ103: 3333.36 | AK103: 3333.36 | AL103: 48.33 | AM103: 0
A104: Social Security Employee | B104: Bruce | D104: 416.67 | E104: 416.67 | F104: 25.83 | H104: 416.67 | I104: 416.67 | J104: 25.84 | L104: 416.67 | M104: 416.67 | N104: 25.83 | P104: 416.67 | Q104: 416.67 | R104: 25.83 | T104: 416.67 | U104: 416.67 | V104: 25.84 | X104: 416.67 | Y104: 416.67 | Z104: 25.83 | AB104: 416.67 | AC104: 416.67 | AD104: 25.83 | AF104: 416.67 | AG104: 416.67 | AH104: 25.84 | AJ104: 3333.36 | AK104: 3333.36 | AL104: 206.67 | AM104: 0
A105: Total - Withholding | F105: =SUM(F100:F104) -> 44.9 | J105: =SUM(J100:J104) -> 44.91 | N105: =SUM(N100:N104) -> 44.91 | R105: =SUM(R100:R104) -> 44.9 | V105: =SUM(V100:V104) -> 42.47 | Z105: =SUM(Z100:Z104) -> 42.46 | AD105: =SUM(AD100:AD104) -> 42.46 | AH105: =SUM(AH100:AH104) -> 42.47 | AL105: =SUM(AL100:AL104) -> 349.48
A106: Company Contribution
A107: Arkansas Unemployment | B107: Bruce | D107: 416.67 | E107: 0 | F107: 0 | H107: 416.67 | I107: 0 | J107: 0 | L107: 416.67 | M107: 0 | N107: 0 | P107: 416.67 | Q107: 0 | R107: 0 | T107: 416.67 | U107: 0 | V107: 0 | X107: 416.67 | Y107: 0 | Z107: 0 | AB107: 416.67 | AC107: 0 | AD107: 0 | AF107: 416.67 | AG107: 0 | AH107: 0 | AJ107: =SUM(D107,H107,L107,P107,T107,X107,AB107,AF107) -> 3333.36 | AK107: 0 | AL107: 0 | AM107: 0
A108: Federal Unemployment | B108: Bruce | D108: 416.67 | E108: 0 | F108: 0 | H108: 416.67 | I108: 0 | J108: 0 | L108: 416.67 | M108: 0 | N108: 0 | P108: 416.67 | Q108: 0 | R108: 0 | T108: 416.67 | U108: 0 | V108: 0 | X108: 416.67 | Y108: 0 | Z108: 0 | AB108: 416.67 | AC108: 0 | AD108: 0 | AF108: 416.67 | AG108: 0 | AH108: 0 | AJ108: 3333.36 | AK108: 0 | AL108: 0 | AM108: 0
A109: Medicare Company | B109: Bruce | D109: 416.67 | E109: 416.67 | F109: 6.04 | H109: 416.67 | I109: 416.67 | J109: 6.04 | L109: 416.67 | M109: 416.67 | N109: 6.05 | P109: 416.67 | Q109: 416.67 | R109: 6.04 | T109: 416.67 | U109: 416.67 | V109: 6.04 | X109: 416.67 | Y109: 416.67 | Z109: 6.04 | AB109: 416.67 | AC109: 416.67 | AD109: 6.04 | AF109: 416.67 | AG109: 416.67 | AH109: 6.04 | AJ109: 3333.36 | AK109: 3333.36 | AL109: 48.33 | AM109: 0
A110: Social Security Company | B110: Bruce | D110: 416.67 | E110: 416.67 | F110: 25.83 | H110: 416.67 | I110: 416.67 | J110: 25.84 | L110: 416.67 | M110: 416.67 | N110: 25.83 | P110: 416.67 | Q110: 416.67 | R110: 25.83 | T110: 416.67 | U110: 416.67 | V110: 25.84 | X110: 416.67 | Y110: 416.67 | Z110: 25.83 | AB110: 416.67 | AC110: 416.67 | AD110: 25.83 | AF110: 416.67 | AG110: 416.67 | AH110: 25.84 | AJ110: 3333.36 | AK110: 3333.36 | AL110: 206.67 | AM110: 0
A111: Total - Company Contribution | F111: =SUM(F107:F110) -> 31.87 | J111: =SUM(J107:J110) -> 31.88 | N111: =SUM(N107:N110) -> 31.88 | R111: =SUM(R107:R110) -> 31.87 | V111: =SUM(V107:V110) -> 31.88 | Z111: =SUM(Z107:Z110) -> 31.87 | AD111: =SUM(AD107:AD110) -> 31.87 | AH111: =SUM(AH107:AH110) -> 31.88 | AL111: =SUM(AL107:AL110) -> 255
A112: Total Net Pay Ellen C Bruce | F112: =1 *(SUM(F98))+-1 *(SUM(F105))+0 *(SUM(F111)) -> 371.77 | J112: =1 *(SUM(J98))+-1 *(SUM(J105))+0 *(SUM(J111)) -> 371.76 | N112: =1 *(SUM(N98))+-1 *(SUM(N105))+0 *(SUM(N111)) -> 371.76 | R112: =1 *(SUM(R98))+-1 *(SUM(R105))+0 *(SUM(R111)) -> 371.77 | V112: =1 *(SUM(V98))+-1 *(SUM(V105))+0 *(SUM(V111)) -> 374.2 | Z112: =1 *(SUM(Z98))+-1 *(SUM(Z105))+0 *(SUM(Z111)) -> 374.21 | AD112: =1 *(SUM(AD98))+-1 *(SUM(AD105))+0 *(SUM(AD111)) -> 374.21 | AH112: =1 *(SUM(AH98))+-1 *(SUM(AH105))+0 *(SUM(AH111)) -> 374.2 | AL112: =SUM(AL98,AL105,AL111) -> 3937.84
A113: James "Todd" Burris | C113: FT | D113: 46562.47 | E113: 30937.48 | F113: 3821.6 | G113: 86.6667 | H113: 46562.47 | I113: 30937.48 | J113: 3821.61 | K113: 86.6667 | L113: 46562.47 | M113: 30937.48 | N113: 3821.6 | O113: 86.6667 | P113: 46562.47 | Q113: 30937.48 | R113: 3821.6 | S113: 86.6667 | T113: 46562.47 | U113: 30937.48 | V113: 3830.78 | W113: 86.6667 | X113: 46562.47 | Y113: 30937.48 | Z113: 3830.77 | AA113: 86.6667 | AB113: 46562.47 | AC113: 30937.48 | AD113: 3830.76 | AE113: 86.6667 | AF113: 46562.47 | AG113: 30937.48 | AH113: 3830.78 | AI113: 86.6667 | AJ113: 372499.76 | AK113: 247499.84 | AL113: 30609.5 | AM113: 693.3336
A114: Earning
A115: Salary - Director of Admin Serv | B115: Burris | F115: 5208.33 | G115: 86.6667 | J115: 5208.33 | K115: 86.6667 | N115: 5208.33 | O115: 86.6667 | R115: 5208.33 | S115: 86.6667 | V115: 5208.33 | W115: 86.6667 | Z115: 5208.33 | AA115: 86.6667 | AD115: 5208.33 | AE115: 86.6667 | AH115: 5208.33 | AI115: 86.6667 | AJ115: =SUM(D115,H115,L115,P115,T115,X115,AB115,AF115) -> 0 | AK115: =SUM(E115,I115,M115,Q115,U115,Y115,AC115,AG115) -> 0 | AL115: =SUM(F115,J115,N115,R115,V115,Z115,AD115,AH115) -> 41666.64 | AM115: =SUM(G115,K115,O115,S115,W115,AA115,AE115,AI115) -> 693.3336
A116: Total - Earning | F116: =SUM(F115) -> 5208.33 | J116: =SUM(J115) -> 5208.33 | N116: =SUM(N115) -> 5208.33 | R116: =SUM(R115) -> 5208.33 | V116: =SUM(V115) -> 5208.33 | Z116: =SUM(Z115) -> 5208.33 | AD116: =SUM(AD115) -> 5208.33 | AH116: =SUM(AH115) -> 5208.33 | AL116: =SUM(AL115) -> 41666.64
A117: Withholding
A118: Additional Medicare | B118: Burris | D118: 5208.33 | E118: 0 | F118: 0 | H118: 5208.33 | I118: 0 | J118: 0 | L118: 5208.33 | M118: 0 | N118: 0 | P118: 5208.33 | Q118: 0 | R118: 0 | T118: 5208.33 | U118: 0 | V118: 0 | X118: 5208.33 | Y118: 0 | Z118: 0 | AB118: 5208.33 | AC118: 0 | AD118: 0 | AF118: 5208.33 | AG118: 0 | AH118: 0 | AJ118: =SUM(D118,H118,L118,P118,T118,X118,AB118,AF118) -> 41666.64 | AK118: 0 | AL118: 0 | AM118: 0
A119: Arkansas Withholding | B119: Burris | D119: 5052.08 | E119: 5052.08 | F119: 298.75 | H119: 5052.08 | I119: 5052.08 | J119: 298.75 | L119: 5052.08 | M119: 5052.08 | N119: 298.75 | P119: 5052.08 | Q119: 5052.08 | R119: 298.75 | T119: 5052.08 | U119: 5052.08 | V119: 289.58 | X119: 5052.08 | Y119: 5052.08 | Z119: 289.58 | AB119: 5052.08 | AC119: 5052.08 | AD119: 289.58 | AF119: 5052.08 | AG119: 5052.08 | AH119: 289.58 | AJ119: 40416.64 | AK119: 40416.64 | AL119: 2353.32 | AM119: 0
A120: Federal Withholding | B120: Burris | D120: 5052.08 | E120: 5052.08 | F120: 533.29 | H120: 5052.08 | I120: 5052.08 | J120: 533.29 | L120: 5052.08 | M120: 5052.08 | N120: 533.29 | P120: 5052.08 | Q120: 5052.08 | R120: 533.29 | T120: 5052.08 | U120: 5052.08 | V120: 533.29 | X120: 5052.08 | Y120: 5052.08 | Z120: 533.29 | AB120: 5052.08 | AC120: 5052.08 | AD120: 533.29 | AF120: 5052.08 | AG120: 5052.08 | AH120: 533.29 | AJ120: 40416.64 | AK120: 40416.64 | AL120: 4266.32 | AM120: 0
A121: Medicare Employee | B121: Burris | D121: 5208.33 | E121: 5208.33 | F121: 75.52 | H121: 5208.33 | I121: 5208.33 | J121: 75.52 | L121: 5208.33 | M121: 5208.33 | N121: 75.52 | P121: 5208.33 | Q121: 5208.33 | R121: 75.52 | T121: 5208.33 | U121: 5208.33 | V121: 75.52 | X121: 5208.33 | Y121: 5208.33 | Z121: 75.52 | AB121: 5208.33 | AC121: 5208.33 | AD121: 75.53 | AF121: 5208.33 | AG121: 5208.33 | AH121: 75.52 | AJ121: 41666.64 | AK121: 41666.64 | AL121: 604.17 | AM121: 0
A122: Social Security Employee | B122: Burris | D122: 5208.33 | E122: 5208.33 | F122: 322.92 | H122: 5208.33 | I122: 5208.33 | J122: 322.91 | L122: 5208.33 | M122: 5208.33 | N122: 322.92 | P122: 5208.33 | Q122: 5208.33 | R122: 322.92 | T122: 5208.33 | U122: 5208.33 | V122: 322.91 | X122: 5208.33 | Y122: 5208.33 | Z122: 322.92 | AB122: 5208.33 | AC122: 5208.33 | AD122: 322.92 | AF122: 5208.33 | AG122: 5208.33 | AH122: 322.91 | AJ122: 41666.64 | AK122: 41666.64 | AL122: 2583.33 | AM122: 0
A123: Total - Withholding | F123: =SUM(F118:F122) -> 1230.48 | J123: =SUM(J118:J122) -> 1230.47 | N123: =SUM(N118:N122) -> 1230.48 | R123: =SUM(R118:R122) -> 1230.48 | V123: =SUM(V118:V122) -> 1221.3 | Z123: =SUM(Z118:Z122) -> 1221.31 | AD123: =SUM(AD118:AD122) -> 1221.32 | AH123: =SUM(AH118:AH122) -> 1221.3 | AL123: =SUM(AL118:AL122) -> 9807.14
A124: Deduction
A125: 403(b) | B125: Burris | F125: 156.25 | J125: 156.25 | N125: 156.25 | R125: 156.25 | V125: 156.25 | Z125: 156.25 | AD125: 156.25 | AH125: 156.25 | AJ125: =SUM(D125,H125,L125,P125,T125,X125,AB125,AF125) -> 0 | AK125: =SUM(E125,I125,M125,Q125,U125,Y125,AC125,AG125) -> 0 | AL125: =SUM(F125,J125,N125,R125,V125,Z125,AD125,AH125) -> 1250 | AM125: =SUM(G125,K125,O125,S125,W125,AA125,AE125,AI125) -> 0
A126: Total - Deduction | F126: =SUM(F125) -> 156.25 | J126: =SUM(J125) -> 156.25 | N126: =SUM(N125) -> 156.25 | R126: =SUM(R125) -> 156.25 | V126: =SUM(V125) -> 156.25 | Z126: =SUM(Z125) -> 156.25 | AD126: =SUM(AD125) -> 156.25 | AH126: =SUM(AH125) -> 156.25 | AL126: =SUM(AL125) -> 1250
A127: Company Contribution
A128: Arkansas Unemployment | B128: Burris | D128: 5208.33 | E128: 0 | F128: 0 | H128: 5208.33 | I128: 0 | J128: 0 | L128: 5208.33 | M128: 0 | N128: 0 | P128: 5208.33 | Q128: 0 | R128: 0 | T128: 5208.33 | U128: 0 | V128: 0 | X128: 5208.33 | Y128: 0 | Z128: 0 | AB128: 5208.33 | AC128: 0 | AD128: 0 | AF128: 5208.33 | AG128: 0 | AH128: 0 | AJ128: =SUM(D128,H128,L128,P128,T128,X128,AB128,AF128) -> 41666.64 | AK128: 0 | AL128: 0 | AM128: 0
A129: Federal Unemployment | B129: Burris | D129: 5208.33 | E129: 0 | F129: 0 | H129: 5208.33 | I129: 0 | J129: 0 | L129: 5208.33 | M129: 0 | N129: 0 | P129: 5208.33 | Q129: 0 | R129: 0 | T129: 5208.33 | U129: 0 | V129: 0 | X129: 5208.33 | Y129: 0 | Z129: 0 | AB129: 5208.33 | AC129: 0 | AD129: 0 | AF129: 5208.33 | AG129: 0 | AH129: 0 | AJ129: 41666.64 | AK129: 0 | AL129: 0 | AM129: 0
A130: Medicare Company | B130: Burris | D130: 5208.33 | E130: 5208.33 | F130: 75.52 | H130: 5208.33 | I130: 5208.33 | J130: 75.52 | L130: 5208.33 | M130: 5208.33 | N130: 75.52 | P130: 5208.33 | Q130: 5208.33 | R130: 75.52 | T130: 5208.33 | U130: 5208.33 | V130: 75.52 | X130: 5208.33 | Y130: 5208.33 | Z130: 75.52 | AB130: 5208.33 | AC130: 5208.33 | AD130: 75.53 | AF130: 5208.33 | AG130: 5208.33 | AH130: 75.52 | AJ130: 41666.64 | AK130: 41666.64 | AL130: 604.17 | AM130: 0
A131: Social Security Company | B131: Burris | D131: 5208.33 | E131: 5208.33 | F131: 322.92 | H131: 5208.33 | I131: 5208.33 | J131: 322.91 | L131: 5208.33 | M131: 5208.33 | N131: 322.92 | P131: 5208.33 | Q131: 5208.33 | R131: 322.92 | T131: 5208.33 | U131: 5208.33 | V131: 322.91 | X131: 5208.33 | Y131: 5208.33 | Z131: 322.92 | AB131: 5208.33 | AC131: 5208.33 | AD131: 322.92 | AF131: 5208.33 | AG131: 5208.33 | AH131: 322.91 | AJ131: 41666.64 | AK131: 41666.64 | AL131: 2583.33 | AM131: 0
A132: Total - Company Contribution | F132: =SUM(F128:F131) -> 398.44 | J132: =SUM(J128:J131) -> 398.43 | N132: =SUM(N128:N131) -> 398.44 | R132: =SUM(R128:R131) -> 398.44 | V132: =SUM(V128:V131) -> 398.43 | Z132: =SUM(Z128:Z131) -> 398.44 | AD132: =SUM(AD128:AD131) -> 398.45 | AH132: =SUM(AH128:AH131) -> 398.43 | AL132: =SUM(AL128:AL131) -> 3187.5
A133: Total Net Pay James "Todd" Burris | F133: =1 *(SUM(F116))+-1 *(SUM(F123))+-1 *(SUM(F126))+0 *(SUM(F132)) -> 3821.6 | J133: =1 *(SUM(J116))+-1 *(SUM(J123))+-1 *(SUM(J126))+0 *(SUM(J132)) -> 3821.61 | N133: =1 *(SUM(N116))+-1 *(SUM(N123))+-1 *(SUM(N126))+0 *(SUM(N132)) -> 3821.6 | R133: =1 *(SUM(R116))+-1 *(SUM(R123))+-1 *(SUM(R126))+0 *(SUM(R132)) -> 3821.6 | V133: =1 *(SUM(V116))+-1 *(SUM(V123))+-1 *(SUM(V126))+0 *(SUM(V132)) -> 3830.78 | Z133: =1 *(SUM(Z116))+-1 *(SUM(Z123))+-1 *(SUM(Z126))+0 *(SUM(Z132)) -> 3830.77 | AD133: =1 *(SUM(AD116))+-1 *(SUM(AD123))+-1 *(SUM(AD126))+0 *(SUM(AD132)) -> 3830.76 | AH133: =1 *(SUM(AH116))+-1 *(SUM(AH123))+-1 *(SUM(AH126))+0 *(SUM(AH132)) -> 3830.78 | AL133: =SUM(AL116,AL123,AL126,AL132) -> 55911.28
A134: LaDonna Busby | C134: FT | D134: 21216.8 | E134: 13983.8 | F134: 1696.82 | G134: 86.6667 | H134: 21216.8 | I134: 13983.8 | J134: 1696.82 | K134: 86.6667 | L134: 21216.8 | M134: 13983.8 | N134: 1696.81 | O134: 86.6667 | P134: 21216.8 | Q134: 13983.8 | R134: 1696.82 | S134: 86.6667 | T134: 21216.8 | U134: 13983.8 | V134: 1710.19 | W134: 86.6667 | X134: 21216.8 | Y134: 13983.8 | Z134: 1710.19 | AA134: 86.6667 | AB134: 21216.8 | AC134: 13983.8 | AD134: 1710.19 | AE134: 86.6667 | AF134: 21216.8 | AG134: 13983.8 | AH134: 1710.18 | AI134: 86.6667 | AJ134: 169734.4 | AK134: 111870.4 | AL134: 13628.02 | AM134: 693.3336
A135: Earning
A136: Salary - NE District | B136: Busby | F136: 2411 | G136: 86.6667 | J136: 2411 | K136: 86.6667 | N136: 2411 | O136: 86.6667 | R136: 2411 | S136: 86.6667 | V136: 2411 | W136: 86.6667 | Z136: 2411 | AA136: 86.6667 | AD136: 2411 | AE136: 86.6667 | AH136: 2411 | AI136: 86.6667 | AJ136: =SUM(D136,H136,L136,P136,T136,X136,AB136,AF136) -> 0 | AK136: =SUM(E136,I136,M136,Q136,U136,Y136,AC136,AG136) -> 0 | AL136: =SUM(F136,J136,N136,R136,V136,Z136,AD136,AH136) -> 19288 | AM136: =SUM(G136,K136,O136,S136,W136,AA136,AE136,AI136) -> 693.3336
A137: Total - Earning | F137: =SUM(F136) -> 2411 | J137: =SUM(J136) -> 2411 | N137: =SUM(N136) -> 2411 | R137: =SUM(R136) -> 2411 | V137: =SUM(V136) -> 2411 | Z137: =SUM(Z136) -> 2411 | AD137: =SUM(AD136) -> 2411 | AH137: =SUM(AH136) -> 2411 | AL137: =SUM(AL136) -> 19288
A138: Withholding
A139: Additional Medicare | B139: Busby | D139: 2411 | E139: 0 | F139: 0 | H139: 2411 | I139: 0 | J139: 0 | L139: 2411 | M139: 0 | N139: 0 | P139: 2411 | Q139: 0 | R139: 0 | T139: 2411 | U139: 0 | V139: 0 | X139: 2411 | Y139: 0 | Z139: 0 | AB139: 2411 | AC139: 0 | AD139: 0 | AF139: 2411 | AG139: 0 | AH139: 0 | AJ139: =SUM(D139,H139,L139,P139,T139,X139,AB139,AF139) -> 19288 | AK139: 0 | AL139: 0 | AM139: 0
A140: Arkansas Withholding | B140: Busby | D140: 2169.9 | E140: 2169.9 | F140: 104.21 | H140: 2169.9 | I140: 2169.9 | J140: 104.21 | L140: 2169.9 | M140: 2169.9 | N140: 104.21 | P140: 2169.9 | Q140: 2169.9 | R140: 104.21 | T140: 2169.9 | U140: 2169.9 | V140: 90.84 | X140: 2169.9 | Y140: 2169.9 | Z140: 90.84 | AB140: 2169.9 | AC140: 2169.9 | AD140: 90.84 | AF140: 2169.9 | AG140: 2169.9 | AH140: 90.84 | AJ140: 17359.2 | AK140: 17359.2 | AL140: 780.2 | AM140: 0
A141: Federal Withholding | B141: Busby | D141: 2169.9 | E141: 2169.9 | F141: 184.43 | H141: 2169.9 | I141: 2169.9 | J141: 184.43 | L141: 2169.9 | M141: 2169.9 | N141: 184.43 | P141: 2169.9 | Q141: 2169.9 | R141: 184.43 | T141: 2169.9 | U141: 2169.9 | V141: 184.43 | X141: 2169.9 | Y141: 2169.9 | Z141: 184.43 | AB141: 2169.9 | AC141: 2169.9 | AD141: 184.43 | AF141: 2169.9 | AG141: 2169.9 | AH141: 184.43 | AJ141: 17359.2 | AK141: 17359.2 | AL141: 1475.44 | AM141: 0
A142: Medicare Employee | B142: Busby | D142: 2411 | E142: 2411 | F142: 34.96 | H142: 2411 | I142: 2411 | J142: 34.96 | L142: 2411 | M142: 2411 | N142: 34.96 | P142: 2411 | Q142: 2411 | R142: 34.96 | T142: 2411 | U142: 2411 | V142: 34.96 | X142: 2411 | Y142: 2411 | Z142: 34.96 | AB142: 2411 | AC142: 2411 | AD142: 34.96 | AF142: 2411 | AG142: 2411 | AH142: 34.96 | AJ142: 19288 | AK142: 19288 | AL142: 279.68 | AM142: 0
A143: Social Security Employee | B143: Busby | D143: 2411 | E143: 2411 | F143: 149.48 | H143: 2411 | I143: 2411 | J143: 149.48 | L143: 2411 | M143: 2411 | N143: 149.49 | P143: 2411 | Q143: 2411 | R143: 149.48 | T143: 2411 | U143: 2411 | V143: 149.48 | X143: 2411 | Y143: 2411 | Z143: 149.48 | AB143: 2411 | AC143: 2411 | AD143: 149.48 | AF143: 2411 | AG143: 2411 | AH143: 149.49 | AJ143: 19288 | AK143: 19288 | AL143: 1195.86 | AM143: 0
A144: Total - Withholding | F144: =SUM(F139:F143) -> 473.08 | J144: =SUM(J139:J143) -> 473.08 | N144: =SUM(N139:N143) -> 473.09 | R144: =SUM(R139:R143) -> 473.08 | V144: =SUM(V139:V143) -> 459.71 | Z144: =SUM(Z139:Z143) -> 459.71 | AD144: =SUM(AD139:AD143) -> 459.71 | AH144: =SUM(AH139:AH143) -> 459.72 | AL144: =SUM(AL139:AL143) -> 3731.18
A145: Deduction
A146: 403(b) | B146: Busby | F146: 241.1 | J146: 241.1 | N146: 241.1 | R146: 241.1 | V146: 241.1 | Z146: 241.1 | AD146: 241.1 | AH146: 241.1 | AJ146: =SUM(D146,H146,L146,P146,T146,X146,AB146,AF146) -> 0 | AK146: =SUM(E146,I146,M146,Q146,U146,Y146,AC146,AG146) -> 0 | AL146: =SUM(F146,J146,N146,R146,V146,Z146,AD146,AH146) -> 1928.8 | AM146: =SUM(G146,K146,O146,S146,W146,AA146,AE146,AI146) -> 0
A147: Total - Deduction | F147: =SUM(F146) -> 241.1 | J147: =SUM(J146) -> 241.1 | N147: =SUM(N146) -> 241.1 | R147: =SUM(R146) -> 241.1 | V147: =SUM(V146) -> 241.1 | Z147: =SUM(Z146) -> 241.1 | AD147: =SUM(AD146) -> 241.1 | AH147: =SUM(AH146) -> 241.1 | AL147: =SUM(AL146) -> 1928.8
A148: Company Contribution
A149: Arkansas Unemployment | B149: Busby | D149: 2411 | E149: 0 | F149: 0 | H149: 2411 | I149: 0 | J149: 0 | L149: 2411 | M149: 0 | N149: 0 | P149: 2411 | Q149: 0 | R149: 0 | T149: 2411 | U149: 0 | V149: 0 | X149: 2411 | Y149: 0 | Z149: 0 | AB149: 2411 | AC149: 0 | AD149: 0 | AF149: 2411 | AG149: 0 | AH149: 0 | AJ149: =SUM(D149,H149,L149,P149,T149,X149,AB149,AF149) -> 19288 | AK149: 0 | AL149: 0 | AM149: 0
A150: Federal Unemployment | B150: Busby | D150: 2411 | E150: 0 | F150: 0 | H150: 2411 | I150: 0 | J150: 0 | L150: 2411 | M150: 0 | N150: 0 | P150: 2411 | Q150: 0 | R150: 0 | T150: 2411 | U150: 0 | V150: 0 | X150: 2411 | Y150: 0 | Z150: 0 | AB150: 2411 | AC150: 0 | AD150: 0 | AF150: 2411 | AG150: 0 | AH150: 0 | AJ150: 19288 | AK150: 0 | AL150: 0 | AM150: 0
A151: Medicare Company | B151: Busby | D151: 2411 | E151: 2411 | F151: 34.96 | H151: 2411 | I151: 2411 | J151: 34.96 | L151: 2411 | M151: 2411 | N151: 34.96 | P151: 2411 | Q151: 2411 | R151: 34.96 | T151: 2411 | U151: 2411 | V151: 34.96 | X151: 2411 | Y151: 2411 | Z151: 34.96 | AB151: 2411 | AC151: 2411 | AD151: 34.96 | AF151: 2411 | AG151: 2411 | AH151: 34.96 | AJ151: 19288 | AK151: 19288 | AL151: 279.68 | AM151: 0
A152: Social Security Company | B152: Busby | D152: 2411 | E152: 2411 | F152: 149.48 | H152: 2411 | I152: 2411 | J152: 149.48 | L152: 2411 | M152: 2411 | N152: 149.49 | P152: 2411 | Q152: 2411 | R152: 149.48 | T152: 2411 | U152: 2411 | V152: 149.48 | X152: 2411 | Y152: 2411 | Z152: 149.48 | AB152: 2411 | AC152: 2411 | AD152: 149.48 | AF152: 2411 | AG152: 2411 | AH152: 149.49 | AJ152: 19288 | AK152: 19288 | AL152: 1195.86 | AM152: 0
A153: Total - Company Contribution | F153: =SUM(F149:F152) -> 184.44 | J153: =SUM(J149:J152) -> 184.44 | N153: =SUM(N149:N152) -> 184.45 | R153: =SUM(R149:R152) -> 184.44 | V153: =SUM(V149:V152) -> 184.44 | Z153: =SUM(Z149:Z152) -> 184.44 | AD153: =SUM(AD149:AD152) -> 184.44 | AH153: =SUM(AH149:AH152) -> 184.45 | AL153: =SUM(AL149:AL152) -> 1475.54
A154: Total Net Pay LaDonna Busby | F154: =1 *(SUM(F137))+-1 *(SUM(F144))+-1 *(SUM(F147))+0 *(SUM(F153)) -> 1696.82 | J154: =1 *(SUM(J137))+-1 *(SUM(J144))+-1 *(SUM(J147))+0 *(SUM(J153)) -> 1696.82 | N154: =1 *(SUM(N137))+-1 *(SUM(N144))+-1 *(SUM(N147))+0 *(SUM(N153)) -> 1696.81 | R154: =1 *(SUM(R137))+-1 *(SUM(R144))+-1 *(SUM(R147))+0 *(SUM(R153)) -> 1696.82 | V154: =1 *(SUM(V137))+-1 *(SUM(V144))+-1 *(SUM(V147))+0 *(SUM(V153)) -> 1710.19 | Z154: =1 *(SUM(Z137))+-1 *(SUM(Z144))+-1 *(SUM(Z147))+0 *(SUM(Z153)) -> 1710.19 | AD154: =1 *(SUM(AD137))+-1 *(SUM(AD144))+-1 *(SUM(AD147))+0 *(SUM(AD153)) -> 1710.19 | AH154: =1 *(SUM(AH137))+-1 *(SUM(AH144))+-1 *(SUM(AH147))+0 *(SUM(AH153)) -> 1710.18 | AL154: =SUM(AL137,AL144,AL147,AL153) -> 26423.52
A155: Christina Choh | C155: FT | D155: 8370 | E155: 5580 | F155: 794.21 | G155: 62 | H155: 11002.5 | I155: 7335 | J155: 1012.51 | K155: 81.5 | L155: 9585 | M155: 6390 | N155: 895.27 | O155: 71 | P155: 11002.5 | Q155: 7335 | R155: 1012.51 | S155: 81.5 | T155: 10125 | U155: 6750 | V155: 942.23 | W155: 75 | X155: 12285 | Y155: 8190 | Z155: 1123.06 | AA155: 90 | AB155: 10260 | AC155: 6840 | AD155: 953.54 | AE155: 76 | AF155: 11880 | AG155: 7920 | AH155: 1089.16 | AI155: 91 | AJ155: 84510 | AK155: 56340 | AL155: 7822.49 | AM155: 628
A156: Earning
A157: Hourly Worker - Overtime | B157: Choh | Z157: 45 | AA157: 2 | AH157: 0 | AI157: 3 | AJ157: =SUM(D157,H157,L157,P157,T157,X157,AB157,AF157) -> 0 | AK157: 0 | AL157: 45 | AM157: 5
A158: Hourly workers | B158: Choh | F158: 930 | G158: 62 | J158: 1222.5 | K158: 81.5 | N158: 1065 | O158: 71 | R158: 1222.5 | S158: 81.5 | V158: 1125 | W158: 75 | Z158: 1320 | AA158: 88 | AD158: 1140 | AE158: 76 | AH158: 1320 | AI158: 88 | AJ158: 0 | AK158: 0 | AL158: 9345 | AM158: 623
A159: Total - Earning | F159: =SUM(F157:F158) -> 930 | J159: =SUM(J157:J158) -> 1222.5 | N159: =SUM(N157:N158) -> 1065 | R159: =SUM(R157:R158) -> 1222.5 | V159: =SUM(V157:V158) -> 1125 | Z159: =SUM(Z157:Z158) -> 1365 | AD159: =SUM(AD157:AD158) -> 1140 | AH159: =SUM(AH157:AH158) -> 1320 | AL159: =SUM(AL157:AL158) -> 9390
A160: Withholding
A161: Additional Medicare | B161: Choh | D161: 930 | E161: 0 | F161: 0 | H161: 1222.5 | I161: 0 | J161: 0 | L161: 1065 | M161: 0 | N161: 0 | P161: 1222.5 | Q161: 0 | R161: 0 | T161: 1125 | U161: 0 | V161: 0 | X161: 1365 | Y161: 0 | Z161: 0 | AB161: 1140 | AC161: 0 | AD161: 0 | AF161: 1320 | AG161: 0 | AH161: 0 | AJ161: =SUM(D161,H161,L161,P161,T161,X161,AB161,AF161) -> 9390 | AK161: 0 | AL161: 0 | AM161: 0
A162: Arkansas Withholding | B162: Choh | D162: 930 | E162: 930 | F162: 23.28 | H162: 1222.5 | I162: 1222.5 | J162: 39.99 | L162: 1065 | M162: 1065 | N162: 30.7 | P162: 1222.5 | Q162: 1222.5 | R162: 39.99 | T162: 1125 | U162: 1125 | V162: 31.94 | X162: 1365 | Y162: 1365 | Z162: 43.94 | AB162: 1140 | AC162: 1140 | AD162: 32.69 | AF162: 1320 | AG162: 1320 | AH162: 41.69 | AJ162: 9390 | AK162: 9390 | AL162: 284.22 | AM162: 0
A163: Federal Withholding | B163: Choh | D163: 930 | E163: 930 | F163: 41.37 | H163: 1222.5 | I163: 1222.5 | J163: 76.47 | L163: 1065 | M163: 1065 | N163: 57.57 | P163: 1222.5 | Q163: 1222.5 | R163: 76.47 | T163: 1125 | U163: 1125 | V163: 64.77 | X163: 1365 | Y163: 1365 | Z163: 93.57 | AB163: 1140 | AC163: 1140 | AD163: 66.57 | AF163: 1320 | AG163: 1320 | AH163: 88.17 | AJ163: 9390 | AK163: 9390 | AL163: 564.96 | AM163: 0
A164: Medicare Employee | B164: Choh | D164: 930 | E164: 930 | F164: 13.48 | H164: 1222.5 | I164: 1222.5 | J164: 17.73 | L164: 1065 | M164: 1065 | N164: 15.44 | P164: 1222.5 | Q164: 1222.5 | R164: 17.73 | T164: 1125 | U164: 1125 | V164: 16.31 | X164: 1365 | Y164: 1365 | Z164: 19.8 | AB164: 1140 | AC164: 1140 | AD164: 16.52 | AF164: 1320 | AG164: 1320 | AH164: 19.14 | AJ164: 9390 | AK164: 9390 | AL164: 136.15 | AM164: 0
A165: Social Security Employee | B165: Choh | D165: 930 | E165: 930 | F165: 57.66 | H165: 1222.5 | I165: 1222.5 | J165: 75.8 | L165: 1065 | M165: 1065 | N165: 66.02 | P165: 1222.5 | Q165: 1222.5 | R165: 75.8 | T165: 1125 | U165: 1125 | V165: 69.75 | X165: 1365 | Y165: 1365 | Z165: 84.63 | AB165: 1140 | AC165: 1140 | AD165: 70.68 | AF165: 1320 | AG165: 1320 | AH165: 81.84 | AJ165: 9390 | AK165: 9390 | AL165: 582.18 | AM165: 0
A166: Total - Withholding | F166: =SUM(F161:F165) -> 135.79 | J166: =SUM(J161:J165) -> 209.99 | N166: =SUM(N161:N165) -> 169.73 | R166: =SUM(R161:R165) -> 209.99 | V166: =SUM(V161:V165) -> 182.77 | Z166: =SUM(Z161:Z165) -> 241.94 | AD166: =SUM(AD161:AD165) -> 186.46 | AH166: =SUM(AH161:AH165) -> 230.84 | AL166: =SUM(AL161:AL165) -> 1567.51
A167: Company Contribution
A168: Arkansas Unemployment | B168: Choh | D168: 930 | E168: 0 | F168: 0 | H168: 1222.5 | I168: 0 | J168: 0 | L168: 1065 | M168: 0 | N168: 0 | P168: 1222.5 | Q168: 0 | R168: 0 | T168: 1125 | U168: 0 | V168: 0 | X168: 1365 | Y168: 0 | Z168: 0 | AB168: 1140 | AC168: 0 | AD168: 0 | AF168: 1320 | AG168: 0 | AH168: 0 | AJ168: =SUM(D168,H168,L168,P168,T168,X168,AB168,AF168) -> 9390 | AK168: 0 | AL168: 0 | AM168: 0
A169: Federal Unemployment | B169: Choh | D169: 930 | E169: 0 | F169: 0 | H169: 1222.5 | I169: 0 | J169: 0 | L169: 1065 | M169: 0 | N169: 0 | P169: 1222.5 | Q169: 0 | R169: 0 | T169: 1125 | U169: 0 | V169: 0 | X169: 1365 | Y169: 0 | Z169: 0 | AB169: 1140 | AC169: 0 | AD169: 0 | AF169: 1320 | AG169: 0 | AH169: 0 | AJ169: 9390 | AK169: 0 | AL169: 0 | AM169: 0
A170: Medicare Company | B170: Choh | D170: 930 | E170: 930 | F170: 13.48 | H170: 1222.5 | I170: 1222.5 | J170: 17.73 | L170: 1065 | M170: 1065 | N170: 15.44 | P170: 1222.5 | Q170: 1222.5 | R170: 17.73 | T170: 1125 | U170: 1125 | V170: 16.31 | X170: 1365 | Y170: 1365 | Z170: 19.8 | AB170: 1140 | AC170: 1140 | AD170: 16.52 | AF170: 1320 | AG170: 1320 | AH170: 19.14 | AJ170: 9390 | AK170: 9390 | AL170: 136.15 | AM170: 0
A171: Social Security Company | B171: Choh | D171: 930 | E171: 930 | F171: 57.66 | H171: 1222.5 | I171: 1222.5 | J171: 75.8 | L171: 1065 | M171: 1065 | N171: 66.02 | P171: 1222.5 | Q171: 1222.5 | R171: 75.8 | T171: 1125 | U171: 1125 | V171: 69.75 | X171: 1365 | Y171: 1365 | Z171: 84.63 | AB171: 1140 | AC171: 1140 | AD171: 70.68 | AF171: 1320 | AG171: 1320 | AH171: 81.84 | AJ171: 9390 | AK171: 9390 | AL171: 582.18 | AM171: 0
A172: Total - Company Contribution | F172: =SUM(F168:F171) -> 71.14 | J172: =SUM(J168:J171) -> 93.53 | N172: =SUM(N168:N171) -> 81.46 | R172: =SUM(R168:R171) -> 93.53 | V172: =SUM(V168:V171) -> 86.06 | Z172: =SUM(Z168:Z171) -> 104.43 | AD172: =SUM(AD168:AD171) -> 87.2 | AH172: =SUM(AH168:AH171) -> 100.98 | AL172: =SUM(AL168:AL171) -> 718.33
A173: Total Net Pay Christina Choh | F173: =1 *(SUM(F159))+-1 *(SUM(F166))+0 *(SUM(F172)) -> 794.21 | J173: =1 *(SUM(J159))+-1 *(SUM(J166))+0 *(SUM(J172)) -> 1012.51 | N173: =1 *(SUM(N159))+-1 *(SUM(N166))+0 *(SUM(N172)) -> 895.27 | R173: =1 *(SUM(R159))+-1 *(SUM(R166))+0 *(SUM(R172)) -> 1012.51 | V173: =1 *(SUM(V159))+-1 *(SUM(V166))+0 *(SUM(V172)) -> 942.23 | Z173: =1 *(SUM(Z159))+-1 *(SUM(Z166))+0 *(SUM(Z172)) -> 1123.06 | AD173: =1 *(SUM(AD159))+-1 *(SUM(AD166))+0 *(SUM(AD172)) -> 953.54 | AH173: =1 *(SUM(AH159))+-1 *(SUM(AH166))+0 *(SUM(AH172)) -> 1089.16 | AL173: =SUM(AL159,AL166,AL172) -> 11675.84
A174: Melanie Churchill | C174: FT | D174: 21280.12 | E174: 13958.98 | F174: 1511.27 | G174: 86.6667 | H174: 21280.12 | I174: 13958.98 | J174: 1511.27 | K174: 86.6667 | L174: 21280.12 | M174: 13958.98 | N174: 1511.27 | O174: 86.6667 | P174: 21280.12 | Q174: 13958.98 | R174: 1511.28 | S174: 86.6667 | T174: 21280.12 | U174: 13958.98 | V174: 1523.92 | W174: 86.6667 | X174: 21280.12 | Y174: 13958.98 | Z174: 1523.94 | AA174: 86.6667 | AB174: 21280.12 | AC174: 13958.98 | AD174: 1523.93 | AE174: 86.6667 | AF174: 21280.12 | AG174: 13958.98 | AH174: 1523.93 | AI174: 86.6667 | AJ174: 170240.96 | AK174: 111671.84 | AL174: 12140.81 | AM174: 693.3336
A175: Earning
A176: Salary - CE District | B176: Churchill | F176: 2440.38 | G176: 86.6667 | J176: 2440.38 | K176: 86.6667 | N176: 2440.38 | O176: 86.6667 | R176: 2440.38 | S176: 86.6667 | V176: 2440.38 | W176: 86.6667 | Z176: 2440.38 | AA176: 86.6667 | AD176: 2440.38 | AE176: 86.6667 | AH176: 2440.38 | AI176: 86.6667 | AJ176: =SUM(D176,H176,L176,P176,T176,X176,AB176,AF176) -> 0 | AK176: =SUM(E176,I176,M176,Q176,U176,Y176,AC176,AG176) -> 0 | AL176: =SUM(F176,J176,N176,R176,V176,Z176,AD176,AH176) -> 19523.04 | AM176: =SUM(G176,K176,O176,S176,W176,AA176,AE176,AI176) -> 693.3336
A177: Total - Earning | F177: =SUM(F176) -> 2440.38 | J177: =SUM(J176) -> 2440.38 | N177: =SUM(N176) -> 2440.38 | R177: =SUM(R176) -> 2440.38 | V177: =SUM(V176) -> 2440.38 | Z177: =SUM(Z176) -> 2440.38 | AD177: =SUM(AD176) -> 2440.38 | AH177: =SUM(AH176) -> 2440.38 | AL177: =SUM(AL176) -> 19523.04
A178: Withholding
A179: Additional Medicare | B179: Churchill | D179: 2440.38 | E179: 0 | F179: 0 | H179: 2440.38 | I179: 0 | J179: 0 | L179: 2440.38 | M179: 0 | N179: 0 | P179: 2440.38 | Q179: 0 | R179: 0 | T179: 2440.38 | U179: 0 | V179: 0 | X179: 2440.38 | Y179: 0 | Z179: 0 | AB179: 2440.38 | AC179: 0 | AD179: 0 | AF179: 2440.38 | AG179: 0 | AH179: 0 | AJ179: =SUM(D179,H179,L179,P179,T179,X179,AB179,AF179) -> 19523.04 | AK179: 0 | AL179: 0 | AM179: 0
A180: Arkansas Withholding | B180: Churchill | D180: 2098.73 | E180: 2098.73 | F180: 99.3 | H180: 2098.73 | I180: 2098.73 | J180: 99.3 | L180: 2098.73 | M180: 2098.73 | N180: 99.3 | P180: 2098.73 | Q180: 2098.73 | R180: 99.3 | T180: 2098.73 | U180: 2098.73 | V180: 86.64 | X180: 2098.73 | Y180: 2098.73 | Z180: 86.64 | AB180: 2098.73 | AC180: 2098.73 | AD180: 86.64 | AF180: 2098.73 | AG180: 2098.73 | AH180: 86.64 | AJ180: 16789.84 | AK180: 16789.84 | AL180: 743.76 | AM180: 0
A181: Federal Withholding | B181: Churchill | D181: 2098.73 | E181: 2098.73 | F181: 301.47 | H181: 2098.73 | I181: 2098.73 | J181: 301.47 | L181: 2098.73 | M181: 2098.73 | N181: 301.47 | P181: 2098.73 | Q181: 2098.73 | R181: 301.47 | T181: 2098.73 | U181: 2098.73 | V181: 301.47 | X181: 2098.73 | Y181: 2098.73 | Z181: 301.47 | AB181: 2098.73 | AC181: 2098.73 | AD181: 301.47 | AF181: 2098.73 | AG181: 2098.73 | AH181: 301.47 | AJ181: 16789.84 | AK181: 16789.84 | AL181: 2411.76 | AM181: 0
A182: Medicare Employee | B182: Churchill | D182: 2440.38 | E182: 2440.38 | F182: 35.39 | H182: 2440.38 | I182: 2440.38 | J182: 35.38 | L182: 2440.38 | M182: 2440.38 | N182: 35.39 | P182: 2440.38 | Q182: 2440.38 | R182: 35.38 | T182: 2440.38 | U182: 2440.38 | V182: 35.39 | X182: 2440.38 | Y182: 2440.38 | Z182: 35.38 | AB182: 2440.38 | AC182: 2440.38 | AD182: 35.39 | AF182: 2440.38 | AG182: 2440.38 | AH182: 35.38 | AJ182: 19523.04 | AK182: 19523.04 | AL182: 283.08 | AM182: 0
A183: Social Security Employee | B183: Churchill | D183: 2440.38 | E183: 2440.38 | F183: 151.3 | H183: 2440.38 | I183: 2440.38 | J183: 151.31 | L183: 2440.38 | M183: 2440.38 | N183: 151.3 | P183: 2440.38 | Q183: 2440.38 | R183: 151.3 | T183: 2440.38 | U183: 2440.38 | V183: 151.31 | X183: 2440.38 | Y183: 2440.38 | Z183: 151.3 | AB183: 2440.38 | AC183: 2440.38 | AD183: 151.3 | AF183: 2440.38 | AG183: 2440.38 | AH183: 151.31 | AJ183: 19523.04 | AK183: 19523.04 | AL183: 1210.43 | AM183: 0
A184: Total - Withholding | F184: =SUM(F179:F183) -> 587.46 | J184: =SUM(J179:J183) -> 587.46 | N184: =SUM(N179:N183) -> 587.46 | R184: =SUM(R179:R183) -> 587.45 | V184: =SUM(V179:V183) -> 574.81 | Z184: =SUM(Z179:Z183) -> 574.79 | AD184: =SUM(AD179:AD183) -> 574.8 | AH184: =SUM(AH179:AH183) -> 574.8 | AL184: =SUM(AL179:AL183) -> 4649.03
A185: Deduction
A186: 403(b) | B186: Churchill | F186: 341.65 | J186: 341.65 | N186: 341.65 | R186: 341.65 | V186: 341.65 | Z186: 341.65 | AD186: 341.65 | AH186: 341.65 | AJ186: =SUM(D186,H186,L186,P186,T186,X186,AB186,AF186) -> 0 | AK186: =SUM(E186,I186,M186,Q186,U186,Y186,AC186,AG186) -> 0 | AL186: =SUM(F186,J186,N186,R186,V186,Z186,AD186,AH186) -> 2733.2 | AM186: =SUM(G186,K186,O186,S186,W186,AA186,AE186,AI186) -> 0
A187: Total - Deduction | F187: =SUM(F186) -> 341.65 | J187: =SUM(J186) -> 341.65 | N187: =SUM(N186) -> 341.65 | R187: =SUM(R186) -> 341.65 | V187: =SUM(V186) -> 341.65 | Z187: =SUM(Z186) -> 341.65 | AD187: =SUM(AD186) -> 341.65 | AH187: =SUM(AH186) -> 341.65 | AL187: =SUM(AL186) -> 2733.2
A188: Company Contribution
A189: Arkansas Unemployment | B189: Churchill | D189: 2440.38 | E189: 0 | F189: 0 | H189: 2440.38 | I189: 0 | J189: 0 | L189: 2440.38 | M189: 0 | N189: 0 | P189: 2440.38 | Q189: 0 | R189: 0 | T189: 2440.38 | U189: 0 | V189: 0 | X189: 2440.38 | Y189: 0 | Z189: 0 | AB189: 2440.38 | AC189: 0 | AD189: 0 | AF189: 2440.38 | AG189: 0 | AH189: 0 | AJ189: =SUM(D189,H189,L189,P189,T189,X189,AB189,AF189) -> 19523.04 | AK189: 0 | AL189: 0 | AM189: 0
A190: Federal Unemployment | B190: Churchill | D190: 2440.38 | E190: 0 | F190: 0 | H190: 2440.38 | I190: 0 | J190: 0 | L190: 2440.38 | M190: 0 | N190: 0 | P190: 2440.38 | Q190: 0 | R190: 0 | T190: 2440.38 | U190: 0 | V190: 0 | X190: 2440.38 | Y190: 0 | Z190: 0 | AB190: 2440.38 | AC190: 0 | AD190: 0 | AF190: 2440.38 | AG190: 0 | AH190: 0 | AJ190: 19523.04 | AK190: 0 | AL190: 0 | AM190: 0
A191: Medicare Company | B191: Churchill | D191: 2440.38 | E191: 2440.38 | F191: 35.39 | H191: 2440.38 | I191: 2440.38 | J191: 35.38 | L191: 2440.38 | M191: 2440.38 | N191: 35.39 | P191: 2440.38 | Q191: 2440.38 | R191: 35.38 | T191: 2440.38 | U191: 2440.38 | V191: 35.39 | X191: 2440.38 | Y191: 2440.38 | Z191: 35.38 | AB191: 2440.38 | AC191: 2440.38 | AD191: 35.39 | AF191: 2440.38 | AG191: 2440.38 | AH191: 35.38 | AJ191: 19523.04 | AK191: 19523.04 | AL191: 283.08 | AM191: 0
A192: Social Security Company | B192: Churchill | D192: 2440.38 | E192: 2440.38 | F192: 151.3 | H192: 2440.38 | I192: 2440.38 | J192: 151.31 | L192: 2440.38 | M192: 2440.38 | N192: 151.3 | P192: 2440.38 | Q192: 2440.38 | R192: 151.3 | T192: 2440.38 | U192: 2440.38 | V192: 151.31 | X192: 2440.38 | Y192: 2440.38 | Z192: 151.3 | AB192: 2440.38 | AC192: 2440.38 | AD192: 151.3 | AF192: 2440.38 | AG192: 2440.38 | AH192: 151.31 | AJ192: 19523.04 | AK192: 19523.04 | AL192: 1210.43 | AM192: 0
A193: Total - Company Contribution | F193: =SUM(F189:F192) -> 186.69 | J193: =SUM(J189:J192) -> 186.69 | N193: =SUM(N189:N192) -> 186.69 | R193: =SUM(R189:R192) -> 186.68 | V193: =SUM(V189:V192) -> 186.7 | Z193: =SUM(Z189:Z192) -> 186.68 | AD193: =SUM(AD189:AD192) -> 186.69 | AH193: =SUM(AH189:AH192) -> 186.69 | AL193: =SUM(AL189:AL192) -> 1493.51
A194: Total Net Pay Melanie Churchill | F194: =1 *(SUM(F177))+-1 *(SUM(F184))+-1 *(SUM(F187))+0 *(SUM(F193)) -> 1511.27 | J194: =1 *(SUM(J177))+-1 *(SUM(J184))+-1 *(SUM(J187))+0 *(SUM(J193)) -> 1511.27 | N194: =1 *(SUM(N177))+-1 *(SUM(N184))+-1 *(SUM(N187))+0 *(SUM(N193)) -> 1511.27 | R194: =1 *(SUM(R177))+-1 *(SUM(R184))+-1 *(SUM(R187))+0 *(SUM(R193)) -> 1511.28 | V194: =1 *(SUM(V177))+-1 *(SUM(V184))+-1 *(SUM(V187))+0 *(SUM(V193)) -> 1523.92 | Z194: =1 *(SUM(Z177))+-1 *(SUM(Z184))+-1 *(SUM(Z187))+0 *(SUM(Z193)) -> 1523.94 | AD194: =1 *(SUM(AD177))+-1 *(SUM(AD184))+-1 *(SUM(AD187))+0 *(SUM(AD193)) -> 1523.93 | AH194: =1 *(SUM(AH177))+-1 *(SUM(AH184))+-1 *(SUM(AH187))+0 *(SUM(AH193)) -> 1523.93 | AL194: =SUM(AL177,AL184,AL187,AL193) -> 28398.78
A195: Stephen Coburn | C195: FT | D195: 42877.27 | E195: 9111.62 | F195: 5816.64 | G195: 86.6667 | H195: 42877.27 | I195: 9111.62 | J195: 4024.98 | K195: 86.6667 | L195: 43773.1 | M195: 9111.62 | N195: 4920.81 | O195: 86.6667 | P195: 43773.1 | Q195: 9111.62 | R195: 4920.81 | S195: 86.6667 | T195: 43773.1 | U195: 9111.62 | V195: 4920.81 | W195: 86.6667 | X195: 43773.1 | Y195: 9111.62 | Z195: 4920.81 | AA195: 86.6667 | AB195: 43773.1 | AC195: 9111.62 | AD195: 4920.81 | AE195: 86.6667 | AF195: 43773.1 | AG195: 9111.62 | AH195: 4920.81 | AI195: 86.6667 | AJ195: 348393.14 | AK195: 72892.96 | AL195: 39366.48 | AM195: 693.3336
A196: Earning
A197: Housing - District Portion | B197: Coburn | N197: 895.83 | O197: 0 | R197: 895.83 | S197: 0 | V197: 895.83 | W197: 0 | Z197: 895.83 | AA197: 0 | AD197: 895.83 | AE197: 0 | AH197: 895.83 | AI197: 0 | AJ197: =SUM(D197,H197,L197,P197,T197,X197,AB197,AF197) -> 0 | AK197: 0 | AL197: 5374.98 | AM197: 0
A198: Housing - District Superintende | B198: Coburn | F198: 2208.33 | G198: 0 | J198: 416.67 | K198: 0 | N198: 416.67 | O198: 0 | R198: 416.67 | S198: 0 | V198: 416.67 | W198: 0 | Z198: 416.67 | AA198: 0 | AD198: 416.67 | AE198: 0 | AH198: 416.67 | AI198: 0 | AJ198: 0 | AK198: 0 | AL198: 5125.02 | AM198: 0
A199: Salary - DS Taxable | B199: Coburn | F199: 4764.14 | G199: 86.6667 | J199: 4764.14 | K199: 86.6667 | N199: 4764.14 | O199: 86.6667 | R199: 4764.14 | S199: 86.6667 | V199: 4764.14 | W199: 86.6667 | Z199: 4764.14 | AA199: 86.6667 | AD199: 4764.14 | AE199: 86.6667 | AH199: 4764.14 | AI199: 86.6667 | AJ199: 0 | AK199: 0 | AL199: 38113.12 | AM199: 693.3336
A200: Total - Earning | F200: =SUM(F197:F199) -> 6972.47 | J200: =SUM(J197:J199) -> 5180.81 | N200: =SUM(N197:N199) -> 6076.64 | R200: =SUM(R197:R199) -> 6076.64 | V200: =SUM(V197:V199) -> 6076.64 | Z200: =SUM(Z197:Z199) -> 6076.64 | AD200: =SUM(AD197:AD199) -> 6076.64 | AH200: =SUM(AH197:AH199) -> 6076.64 | AL200: =SUM(AL197:AL199) -> 48613.12
A201: Withholding
A202: Additional Medicare | B202: Coburn | D202: 4764.14 | E202: 0 | F202: 0 | H202: 4764.14 | I202: 0 | J202: 0 | L202: 4764.14 | M202: 0 | N202: 0 | P202: 4764.14 | Q202: 0 | R202: 0 | T202: 4764.14 | U202: 0 | V202: 0 | X202: 4764.14 | Y202: 0 | Z202: 0 | AB202: 4764.14 | AC202: 0 | AD202: 0 | AF202: 4764.14 | AG202: 0 | AH202: 0 | AJ202: =SUM(D202,H202,L202,P202,T202,X202,AB202,AF202) -> 38113.12 | AK202: 0 | AL202: 0 | AM202: 0
... 828 more rows

Sheet Sheet2
B1: 2020-01-15 | D1: 2020-01-31 | F1: 2020-02-15 | H1: 2020-02-29 | K1: 2020-04-15 | M1: 2020-04-30 | O1: 2020-05-15 | Q1: 2020-05-31
B2: FT/PT | C2: Gross Wage | D2: FT/PT | E2: Gross Wage | F2: FT/PT | G2: Gross Wage | H2: FT/PT | I2: Gross Wage | K2: FT/PT | L2: Gross Wage | M2: FT/PT | N2: Gross Wage | O2: FT/PT | P2: Gross Wage | Q2: FT/PT | R2: Gross Wage
A3: Employee 1 | B3: FT | C3: 1500 | D3: FT | E3: 1500 | F3: FT | G3: 1500 | H3: FT | I3: 1500 | K3: FT | L3: 1500 | M3: FT | N3: 1500 | O3: FT | P3: 1500 | Q3: FT | R3: 1500
A4: Employee 2 | B4: FT | C4: 850 | D4: FT | E4: 850 | F4: FT | G4: 850 | H4: FT | I4: 850 | K4: FT | L4: 850 | M4: FT | N4: 850 | O4: FT | P4: 850 | Q4: FT | R4: 850
A5: Employee 3 | B5: PT | C5: 150 | D5: PT | E5: 150 | F5: PT | G5: 150 | H5: PT | I5: 150 | K5: PT | L5: 150 | M5: PT | N5: 150 | O5: PT | P5: 150 | Q5: PT | R5: 150
C6: =SUM(C3:C5) -> 2500 | E6: =SUM(E3:E5) -> 2500 | G6: =SUM(G3:G5) -> 2500 | I6: =SUM(I3:I5) -> 2500 | L6: =SUM(L3:L5) -> 2500 | N6: =SUM(N3:N5) -> 2500 | P6: =SUM(P3:P5) -> 2500 | R6: =SUM(R3:R5) -> 2500
A7: TOTAL FULL TIME | C7: =COUNTIF(B3:B5,"FT") -> 2 | E7: =COUNTIF(D3:D5,"FT") -> 2 | G7: =COUNTIF(F3:F5,"FT") -> 2 | I7: =COUNTIF(H3:H5,"FT") -> 2 | L7: =COUNTIF(K3:K5,"FT") -> 2 | N7: =COUNTIF(M3:M5,"FT") -> 2 | P7: =COUNTIF(O3:O5,"FT") -> 2 | R7: =COUNTIF(Q3:Q5,"FT") -> 2
A8: TOTAL FULL TIME PAY | C8: =SUMIF(B3:B5,"FT",C3:C5) -> 2350 | E8: =SUMIF(D3:D5,"FT",E3:E5) -> 2350 | G8: =SUMIF(F3:F5,"FT",G3:G5) -> 2350 | I8: =SUMIF(H3:H5,"FT",I3:I5) -> 2350 | L8: =SUMIF(K3:K5,"FT",L3:L5) -> 2350 | N8: =SUMIF(M3:M5,"FT",N3:N5) -> 2350 | P8: =SUMIF(O3:O5,"FT",P3:P5) -> 2350 | R8: =SUMIF(Q3:Q5,"FT",R3:R5) -> 2350
H11: AVERAGE NO. OF FTES 1/1/2020-2/29/2020 | I11: =AVERAGE(C7:I7) -> 2
H12: AVERAGE NO. OF FTES FOR 8 WEEK LOAN PERIOD | I12: =AVERAGE(L7:R7) -> 2
H13: DECREASE (SHOULD BE NO MORE THAN 25%) | I13: =(I12-I11)/I11 -> 0
H15: AVERAGE WAGES/PAY PERIOD 1/1/2020-2/29/2020 | I15: =AVERAGE(C8:J8) -> 2350
H16: AVERAGE WAGES/PAY PERIOD FOR 8 WEEK LOAN PERIOD | I16: =AVERAGE(K8:R8) -> 2350
H17: DECREASE (SHOULD BE NO MORE THAN 25% FOR AN INDIVIDUAL EMPLOYEE) | I17: =(I16-I15)/I15 -> 0
